Cogmind - Beta 17 @@@ ROGUE MODE // 2026.08.07 @ 00:17:00 // Winter2019/RPGLIKE Player: Grimbling Result: Escaped! Performance ------------- Evolutions (9) 4500 Regions Visited (30) 6000 Robots Destroyed (325) 1625 Value Destroyed (20905) 20905 Prototype IDs (189) 3780 Alien Tech Used (4) 800 Bonus (24618) 24618 TOTAL SCORE: 62228 Bonus ------- High Alert Combat Kills 2212 Follower Combat Kills 1950 Hunted by Unchained 500 Met Data Miner 300 Met Imprinter 300 Destroyed Z-Imprinter 1000 Triggered Deep Caves Wall 500 Met Warlord at Base 500 MAIN.C Attacked Warlord 500 Met R17 at Cetus 500 Hacked Protovariant 1000 Met Warlord at Research 2000 Hacked God Mode 5000 Scanned by Researcher 500 Met MAIN.C 5000 Win 3000 Friendly Fire -144 Cogmind --------- Core Integrity 630/1000 Matter 970/1000 Energy 1899/2000 System Corruption 0% Temperature Warm (169) Movement Flying (10) Location To Epsilon Eridani Parts ------- > --- POWER (1) -------- Improved Quantum Reactor > --- PROPULSION (6) --- Experimental Surge Thruster Experimental Surge Thruster Experimental Surge Thruster Experimental Surge Thruster Experimental Surge Thruster Experimental Surge Thruster > --- UTILITY (16) ----- Makeshift Trap Scanner Advanced Signal Interpreter Advanced Terrain Scanner Assembled Combat Suite Experimental Target Analyzer Experimental Armor Integrity Analyzer Advanced Particle Accelerator Advanced Weapon Cycler Experimental Reaction Control System Advanced Phase Shifter Assembled Alloy Armor Medium Regenerative Plating Thermal Barrier Experimental Force Field Advanced Dynamic Insulation System Experimental System Purifier > --- WEAPON (3) ------- Concept Variable Chargecaster Concept Variable Chargecaster Advanced Remote Datajack > --- INVENTORY (12) --- Experimental Surge Thruster Femtoactuators Concept Cloak Mesh Concept Antimissile System Concept Variable Chargecaster Improved Plasma Cutter Core Stripper Peak State ------------ > --- POWER ------------ Improved Quantum Reactor > --- PROPULSION ------- Experimental Surge Thruster Experimental Surge Thruster Experimental Surge Thruster Experimental Surge Thruster Experimental Surge Thruster Experimental Surge Thruster > --- UTILITY ---------- Makeshift Trap Scanner Advanced Signal Interpreter Advanced Terrain Scanner Assembled Combat Suite Experimental Target Analyzer Experimental Armor Integrity Analyzer Femtoactuators Experimental Reaction Control System Advanced Phase Shifter Concept Cloak Mesh Assembled Alloy Armor Thermal Barrier Experimental Force Field Advanced Dynamic Insulation System Experimental System Purifier Concept Impact Drone Bay > --- WEAPON ----------- Advanced Datajack Core Stripper > --- INVENTORY -------- Protomatter Experimental Surge Thruster Advanced Particle Accelerator Medium Regenerative Plating Concept Antimissile System Crosscalibrator Concept Variable Chargecaster Concept Variable Chargecaster Concept Variable Chargecaster Sigix Terminator Improved Plasma Cutter [Rating: 263] Favorites ----------- Power Zionite Light DM Reactor Engine Heavy Ion Engine Power Core Light Fission Core Reactor Zionite Light DM Reactor Propulsion Improved Surge Thruster Leg Aluminum Leg Hover Unit Zionite Glidesys II Flight Unit Improved Surge Thruster Utility Particle Charger Device Particle Charger Storage Assembled Biocell Array Processor Advanced Signal Interpreter Hackware Makeshift System Shield Protection Assembled Alloy Armor Weapon Beamcaster Energy Gun Beamcaster Energy Cannon Advanced Beam Cannon Ballistic Gun Assault Rifle Launcher Sigix Terminator Special Weapon Advanced Remote Datajack Impact Weapon Core Stripper Slashing Weapon Ripper Piercing Weapon Enhanced Force Lance Special Melee Weapon Advanced Datajack Build | -11 -10 -10 -10 -9 -8 -7 -7 -7 -7 -6 -6 -6 -6 -6 -5 -5 -5 -5 -5 -4 -4 -4 -4 -3 -3 -2 -2 -2 -1 -1 ------- Run | Yrd Mat Min Exi Min Mat Fac Low Low Dat Pro Fac Low Zio Dee Pro Fac Upp Upp War Pro Fac Ext Cet Res Tes Res Qua Frg Acc Com Slots Evolved 22 | 7 3 . . 3 . 3 . 2 . . . . . 3 . 1 . . . . . . . . . . . . . . Power . | . . . . . . . . . . . . . . . . . . . . . . . . . . . . . . . Propulsion 5 | 1 3 . . . . . . . . . . . . . . 1 . . . . . . . . . . . . . . Utility 15 | 4 . . . 3 . 3 . 2 . . . . . 3 . . . . . . . . . . . . . . . . Weapon 2 | 2 . . . . . . . . . . . . . . . . . . . . . . . . . . . . . . Parts Attached 189 | 7 8 1 . 5 14 8 5 4 . 1 3 1 3 18 1 19 1 1 7 1 . 1 4 11 16 1 12 35 . 1 Power 7 | 1 1 . . . 1 1 . . . . . . . 1 . . . . . . . . . . . . 2 . . . Engine 2 | 1 . . . . 1 . . . . . . . . . . . . . . . . . . . . . . . . . Core 2 | . 1 . . . . 1 . . . . . . . . . . . . . . . . . . . . . . . . Reactor 3 | . . . . . . . . . . . . . . 1 . . . . . . . . . . . . 2 . . . Propulsion 43 | 2 3 . . 2 3 1 1 1 . 1 . . . 5 . 12 . . 1 . . . . 1 . . . 10 . . Treads . | . . . . . . . . . . . . . . . . . . . . . . . . . . . . . . . Leg 3 | 2 . . . . . . . . . . . . . 1 . . . . . . . . . . . . . . . . Wheel . | . . . . . . . . . . . . . . . . . . . . . . . . . . . . . . . Hover 2 | . . . . . . . . . . . . . . 2 . . . . . . . . . . . . . . . . Flight 38 | . 3 . . 2 3 1 1 1 . 1 . . . 2 . 12 . . 1 . . . . 1 . . . 10 . . Utility 78 | 1 1 1 . 1 3 3 . 3 . . 3 1 . 9 1 7 . . 4 1 . 1 . 6 8 . 4 19 . 1 Device 55 | 1 1 1 . 1 2 2 . 1 . . 2 1 . 5 1 5 . . 3 1 . 1 . 4 5 . 3 14 . 1 Storage 1 | . . . . . . . . . . . . . . 1 . . . . . . . . . . . . . . . . Processor 17 | . . . . . 1 1 . 1 . . 1 . . . . 2 . . 1 . . . . 2 2 . 1 5 . . Hackware 1 | . . . . . . . . 1 . . . . . . . . . . . . . . . . . . . . . . Protection 4 | . . . . . . . . . . . . . . 3 . . . . . . . . . . 1 . . . . . Artifact . | . . . . . . . . . . . . . . . . . . . . . . . . . . . . . . . Weapon 61 | 3 3 . . 2 7 3 4 . . . . . 3 3 . . 1 1 2 . . . 4 4 8 1 6 6 . . Energy Gun 36 | 1 3 . . 1 6 3 4 . . . . . . 3 . . 1 1 1 . . . . 4 2 . 2 4 . . Energy Cannon 1 | . . . . . 1 . . . . . . . . . . . . . . . . . . . . . . . . . Ballistic Gun 3 | 2 . . . . . . . . . . . . . . . . . . . . . . 1 . . . . . . . Ballistic Cannon . | . . . . . . . . . . . . . . . . . . . . . . . . . . . . . . . Launcher 2 | . . . . . . . . . . . . . . . . . . . . . . . . . . . 2 . . . Special Weapon 4 | . . . . 1 . . . . . . . . . . . . . . . . . . . . 2 . . 1 . . Impact Weapon 1 | . . . . . . . . . . . . . . . . . . . . . . . . . . . 1 . . . Slashing Weapon 11 | . . . . . . . . . . . . . 3 . . . . . . . . . 3 . 2 1 1 1 . . Piercing Weapon 2 | . . . . . . . . . . . . . . . . . . . 1 . . . . . 1 . . . . . Special Melee Weapon 1 | . . . . . . . . . . . . . . . . . . . . . . . . . 1 . . . . . Unidentified Prototypes 74 | . . 1 . . 4 . . . . . . . . 13 . 1 . . 6 . . . 1 9 13 1 8 17 . . Parts Lost 5 | . . . . . . . . . . . . . . 3 . . . . . . . . . . 1 . . 1 . . Power . | . . . . . . . . . . . . . . . . . . . . . . . . . . . . . . . Propulsion 2 | . . . . . . . . . . . . . . 1 . . . . . . . . . . . . . 1 . . Utility 3 | . . . . . . . . . . . . . . 2 . . . . . . . . . . 1 . . . . . Weapon . | . . . . . . . . . . . . . . . . . . . . . . . . . . . . . . . Highest Loss Streak 2 | . . . . . . . . . . . . . . 2 . . . . . . . . . . 1 . . 1 . . To Critical Strikes 1 | . . . . . . . . . . . . . . . . . . . . . . . . . . . . 1 . . Average Backups 4 | . 1 1 1 1 4 2 4 4 4 4 4 4 5 6 6 6 5 5 5 5 5 5 4 4 4 5 4 8 7 7 Power . | . . . . . . . . . . . . . . . 1 . . . . . . . . . . . . . . . Propulsion . | . . . . . . . . 1 1 1 1 1 1 . 1 1 . . . . . . . . . . . . 1 1 Utility . | . . . . . . . . . . . . . . 1 . . . . . . . . . . . . . 2 3 3 Weapon 2 | . 1 1 1 1 2 2 3 3 3 3 3 3 2 3 3 3 3 3 3 3 3 3 2 3 3 3 3 3 1 1 Tool/Special . | . . . . . . . . . . . . . . . . . . . . . . . . . . . . . . . Unused Backups 13 | . . . . . 1 . 3 . . 1 . . . 1 . 2 . . . . . 1 . 1 1 . . 1 . 1 Power 1 | . . . . . . . 1 . . . . . . . . . . . . . . . . . . . . . . . Propulsion 2 | . . . . . 1 . . . . . . . . . . . . . . . . . . . . . . . . 1 Utility 1 | . . . . . . . . . . . . . . 1 . . . . . . . . . . . . . . . . Weapon 7 | . . . . . . . 2 . . 1 . . . . . 1 . . . . . 1 . . 1 . . 1 . . Tool/Special 2 | . . . . . . . . . . . . . . . . 1 . . . . . . . 1 . . . . . . Average Slot Usage (%) 93 | . 62 68 71 85 87 91 95 94 95 95 95 95 95 93 100 97 100 100 99 100 100 98 100 97 95 95 95 95 100 100 Core 1 | . 6 7 7 7 1 1 5 4 4 4 4 4 4 1 . . . . . . . . . . . . . . . . Reactor 2 | . . . . . . . . . . . . . . 2 4 4 3 3 3 3 3 3 3 3 3 3 3 3 3 3 Flight 21 | . 2 21 21 32 29 25 25 23 22 22 22 22 22 20 20 19 23 23 22 23 23 23 23 22 23 23 23 22 23 23 Device 40 | . 9 18 21 24 28 38 40 40 40 40 40 40 40 40 48 43 42 42 45 46 46 46 50 47 45 46 46 43 42 42 Processor 9 | . . . . . 4 7 10 10 13 13 13 13 13 12 12 14 15 15 12 11 11 9 7 7 7 7 7 9 11 11 Protection 3 | . . . . . . . . . . . . . . 2 4 4 3 3 3 3 3 3 3 3 6 6 7 7 7 7 Energy Gun 9 | . 16 21 21 21 17 14 15 14 13 13 13 13 10 7 12 12 11 11 11 11 11 11 8 11 . . 1 2 11 10 Slashing Weapon 1 | . . . . . . . . . . . . . 2 4 . . . . . . . . 2 . 6 6 . . . . Peak Build Rating 263 | 9 15 22 22 33 56 71 77 85 85 87 88 87 87 161 142 156 158 158 174 174 174 174 171 176 180 181 206 263 250 253 Average Rating 133 | 6 11 19 22 27 44 64 74 80 85 85 84 86 86 110 141 144 155 156 168 173 174 170 169 166 173 179 190 234 250 251 On Entrance 117 | . 9 15 22 22 33 55 71 76 85 85 86 85 87 83 139 142 156 156 158 172 174 174 171 171 165 178 181 202 250 250 Avg Prop Armor Cover (%) 18 | . . . . . . . . . . . . . . . . . . . 18 . . 18 . . . . . . . . Naked Turns . | . . . . . . . . . . . . . . . . . . . . . . . . . . . . . . . Heaviest Build 98 | 11 15 19 19 24 30 36 38 39 39 39 39 41 41 49 52 54 54 56 58 60 60 63 63 66 68 60 79 98 94 94 Greatest Support 122 | 60 60 52 52 60 62 63 63 63 63 64 64 64 64 84 84 85 64 64 76 64 70 70 82 70 80 80 80 122 110 118 Greatest Overweight (x) 1 | . . . . . . . . . . . . . . . . . . . 1 . . 1 . . . . . . . . Average Overweight (x) . | . . . . . . . . . . . . . . . . . . . . . . . . . . . . . . . Largest Inventory Capacity 12 | 10 10 10 10 10 10 10 10 10 10 10 10 10 10 10 10 10 10 10 10 10 10 10 10 10 10 10 10 12 12 12 Average Capacity 10 | 10 10 10 10 10 10 10 10 10 10 10 10 10 10 10 10 10 10 10 10 10 10 10 10 10 10 10 10 11 12 12 Most Carried 12 | 1 7 3 3 5 10 9 10 10 8 10 10 10 10 10 10 10 10 10 10 10 10 10 10 10 10 10 10 12 8 9 Average Carried 7 | . 2 2 3 3 7 3 6 8 8 8 9 9 9 7 7 9 8 9 9 9 10 9 9 8 7 8 7 9 8 8 Final Capacity 12 | 10 10 10 10 10 10 10 10 10 10 10 10 10 10 10 10 10 10 10 10 10 10 10 10 10 10 10 10 12 12 12 Final Carried 10 | 1 3 3 3 4 6 2 8 8 8 9 9 9 9 6 10 9 9 10 9 10 10 10 10 9 8 9 8 8 8 8 Scrap Suit Usage (%) 1 | . . . . 6 . . . . . . . . . 3 . . . . . . . . . . . . . . . . Parts Cannibalized 1 | . . . . . . . . . . . . . . 1 . . . . . . . . . . . . . . . . Class Distribution -------------------- 73% | Wizard-Scout 20% | Wizard-Ninja 6% | Wizard-Skirmisher Dominant Class ---------------- Wizard-Skirmisher | -10/Materials Wizard-Scout | -10/Mines Wizard-Scout | -10/Exiles Wizard-Scout | -9/Mines Wizard-Scout | -8/Materials Wizard-Scout | -7/Factory Wizard-Scout | -7/Lower Caves Wizard-Scout | -7/Lower Caves Wizard-Scout | -7/Data Miner Wizard-Scout | -6/Proximity Caves Wizard-Scout | -6/Factory Wizard-Scout | -6/Lower Caves Wizard-Scout | -6/Zion Wizard-Scout | -6/Deep Caves Wizard-Scout | -5/Proximity Caves Wizard-Scout | -5/Factory Wizard-Scout | -5/Upper Caves Wizard-Scout | -5/Upper Caves Wizard-Scout | -5/Warlord Wizard-Scout | -4/Proximity Caves Wizard-Scout | -4/Factory Wizard-Scout | -4/Extension Wizard-Scout | -4/Cetus Wizard-Scout | -3/Research Wizard-Ninja | -3/Testing Wizard-Ninja | -2/Research Wizard-Ninja | -2/Quarantine Wizard-Scout | -2/Protoforge Wizard-Scout | -1/Access Wizard-Scout | -1/Command Resources | -11 -10 -10 -10 -9 -8 -7 -7 -7 -7 -6 -6 -6 -6 -6 -5 -5 -5 -5 -5 -4 -4 -4 -4 -3 -3 -2 -2 -2 -1 -1 ----------- Run | Yrd Mat Min Exi Min Mat Fac Low Low Dat Pro Fac Low Zio Dee Pro Fac Upp Upp War Pro Fac Ext Cet Res Tes Res Qua Frg Acc Com Matter Collected 3984 | 425 418 323 . 60 120 110 70 40 . . . 40 . 330 90 180 30 10 . 120 . 10 130 180 310 60 220 698 . 10 Remotely . | . . . . . . . . . . . . . . . . . . . . . . . . . . . . . . . Salvage Created 17650 | 205 361 42 . 343 853 157 1054 586 . . . 251 . 563 664 810 687 280 . 628 . 2643 200 835 351 347 1043 3917 279 551 Parts 721 | 12 25 6 . 13 33 3 41 31 . 6 1 10 . 44 24 52 26 16 . 25 . 122 4 21 26 23 17 99 8 33 Haulers Intercepted 11 | . 1 . . . 3 1 . . . . . . . . . 1 . . . . . . . 2 1 . 1 . 1 . Recyclers Shooed . | . . . . . . . . . . . . . . . . . . . . . . . . . . . . . . . Parts Field Recycled . | . . . . . . . . . . . . . . . . . . . . . . . . . . . . . . . Retrieved Matter . | . . . . . . . . . . . . . . . . . . . . . . . . . . . . . . . Parts Self-Destructed 152 | . . . . . . . 18 29 . 6 . 10 . . 22 . 25 15 . 27 . . . . . . . . . . Prevented . | . . . . . . . . . . . . . . . . . . . . . . . . . . . . . . . Parts Restored . | . . . . . . . . . . . . . . . . . . . . . . . . . . . . . . . Kills | -11 -10 -10 -10 -9 -8 -7 -7 -7 -7 -6 -6 -6 -6 -6 -5 -5 -5 -5 -5 -4 -4 -4 -4 -3 -3 -2 -2 -2 -1 -1 ------- Run | Yrd Mat Min Exi Min Mat Fac Low Low Dat Pro Fac Low Zio Dee Pro Fac Upp Upp War Pro Fac Ext Cet Res Tes Res Qua Frg Acc Com Combat Hostiles Destroyed 279 | . 9 . . 9 16 1 25 11 . 1 1 4 . 18 11 13 15 7 . 10 . 35 2 7 3 8 5 56 2 10 Melee 42 | . . . . . . . . . . . . . . 11 . . . . . . . . 2 . 3 8 1 17 . . Guns 198 | . 9 . . 9 15 1 25 11 . 1 . 4 . 7 11 13 15 7 . 10 . 34 . 7 . . 1 6 2 10 Classes Destroyed 31 | 3 4 . . 1 4 . 2 2 . . . . . 3 . 1 . 1 . 1 . 2 . . 1 1 2 3 . . Worker 7 | 2 . . . 1 . 1 . . . . . . . . . 1 . . . . . . . 1 . . . 1 . . Tunneler 6 | 4 . 2 . . . . . . . . . . . . . . . . . . . . . . . . . . . . Hauler 11 | . 1 . . . 3 1 . . . . . . . . . 1 . . . . . . . 2 1 . 1 . 1 . Recycler 2 | 1 . . . 1 . . . . . . . . . . . . . . . . . . . . . . . . . . Operator 5 | . . . . . 1 . . . . . . . . . . . . . . . . . . . 1 1 . 1 1 . Drone 9 | . . . . . . . . . . . . . . . . . . . . 2 . . . 1 . . . 6 . . Watcher 20 | . 3 . . . . 1 . . . . . . . . . 4 . . . . . 2 . 2 1 1 2 3 1 . Swarmer 44 | . 3 . . 4 . . 7 2 . . . . . . 2 5 6 . . . . 4 . . . 5 . . . 6 Cutter 4 | . . . . . . . . . . . . . . . . 4 . . . . . . . . . . . . . . Grunt 63 | . 6 . . 4 10 . 4 5 . . . 1 . . 1 1 6 1 . 4 . 11 . 2 . . 1 4 2 . Brawler 7 | . . . . 1 . . 3 . . . . . . . . . . 2 . . . 1 . . . . . . . . Duelist 9 | . . . . . . . 2 . . . . 1 . . 4 . . 1 . . . 1 . . . . . . . . Protector 2 | . . . . . . . . . . . . . . . . . . . . . . 2 . . . . . . . . Researcher 6 | . . . . . . . . . . . . . . . . . . . . . . . . . 2 . 2 2 . . Sentry 42 | . . . . . 3 1 2 2 . . 1 . . . 2 2 2 1 . 1 . 10 . 1 . . . 12 . 2 Demolisher 1 | . . . . . . . . . . . . . . . . . . . . . . 1 . . . . . . . . Specialist 6 | . . . . . . . . . . . . . . . . . . . . . . . . . . . . 6 . . Hunter 15 | . . . . . 2 . . . . . . 2 . . 2 . . 1 . 1 . 1 . . . . . 6 . . Programmer 20 | . . . . . . . . 2 . 1 . . . . . . 1 . . 1 . 2 . 3 2 1 2 4 . 1 Heavy 2 | . . . . . 1 . . . . . . . . . . 1 . . . . . . . . . . . . . . Q-Series 2 | . . . . . . . . . . . . . . . . . . . . . . . . . . . . 2 . . Behemoth 4 | . . . . . . . . . . . . . . . . . . 1 . 1 . 1 . . . . . . . 1 Cetus Guard 2 | . . . . . . . . . . . . . . . . . . . . . . . 2 . . . . . . . Decapitator 6 | . . . . . . . . . . . . . . . . . . . . . . . . . . . . 6 . . Immortal 4 | . . . . . . . . . . . . . . . . . . . . . . . . . . . . 4 . . Alpha 7 3 | . . . . . . . . . . . . . . . . . . . . . . . . . . . 1 2 . . Fortress 1 | . . . . . . . . . . . . . . . . . . . . . . . . . . . 1 . . . V-Series 4 | . . . . . . . . . . . . . . . . . . . . . . . . . . . . 4 . . Protovariant H 1 | . . . . . . . . . . . . . . . . . . . . . . . . . 1 . . . . . Z-Light 10 | . . . . . . . . . . . . . . 10 . . . . . . . . . . . . . . . . Samaritan 1 | . . . . . . . . 1 . . . . . . . . . . . . . . . . . . . . . . Assembled 6 | . . . . . . . . . . . . . . 6 . . . . . . . . . . . . . . . . Golem 1 | . . . . . . . . . . . . . . 1 . . . . . . . . . . . . . . . . Thug 7 | . . . . . . . 5 . . . . . . . . . . . . . . 2 . . . . . . . . Butcher 1 | . . . . . . . 1 . . . . . . . . . . . . . . . . . . . . . . . Mutant 1 | . . . . . . . 1 . . . . . . . . . . . . . . . . . . . . . . . Knight 1 | . . . . . . . . . . . . . . . . . . . . . . . . . . 1 . . . . Best Kill Streak 18 | 4 8 2 . 5 10 4 7 5 . 1 1 3 . 6 4 7 8 5 . 4 . 18 1 7 2 5 6 12 5 10 Combat Bots Only 17 | . 5 . . 4 8 1 7 5 . 1 1 3 . 6 4 6 8 5 . 4 . 17 1 2 2 5 2 12 2 10 Max Kills in Single Turn 3 | 1 2 2 . 3 2 1 2 2 . 1 1 1 . 2 2 3 1 1 . 2 . 2 1 1 1 1 1 1 1 2 Gunslinging 2 | . 1 . . 2 . . 1 1 . . . . . 1 1 2 . . . 1 . . . . . . . . . 1 Exploded . | . . . . . . . . . . . . . . . . . . . . . . . . . . . . . . . Melee 1 | . . . . . . . . . . . . . . 1 . . . . . . . . 1 . 1 1 1 1 . . Uniques/NPCs Destroyed 2 | . . . . . . . . . . . . . . 1 . . . . . . . . . . . 1 . . . . Z-Imprinter (-6/Deep Caves) Warlord (-2/Research) Combat | -11 -10 -10 -10 -9 -8 -7 -7 -7 -7 -6 -6 -6 -6 -6 -5 -5 -5 -5 -5 -4 -4 -4 -4 -3 -3 -2 -2 -2 -1 -1 -------- Run | Yrd Mat Min Exi Min Mat Fac Low Low Dat Pro Fac Low Zio Dee Pro Fac Upp Upp War Pro Fac Ext Cet Res Tes Res Qua Frg Acc Com Hostile Shots Fired 1440 | . 19 . . 14 56 27 20 23 . . 27 9 . 141 26 34 17 22 . 29 . 88 10 39 89 75 60 449 33 133 Missed 933 | . 4 . . 6 24 15 12 13 . . 12 4 . 63 15 24 14 19 . 19 . 61 8 29 63 44 37 313 24 110 Hits 507 | . 15 . . 8 32 12 8 10 . . 15 5 . 78 11 10 3 3 . 10 . 27 2 10 26 31 23 136 9 23 Melee 14 | . . . . . . . . . . . . . . 3 . 1 . . . . . . . . . 3 . 7 . . Projectile 493 | . 15 . . 8 32 12 8 10 . . 15 5 . 75 11 9 3 3 . 10 . 27 2 10 26 28 23 129 9 23 AOE 18 | . . . . . 1 . . . . . . . . . . . . . . . . . . . . . . 15 . 2 Critical Strikes 39 | . . . . . 2 . . . . . . 1 . . . . . . . 1 . 3 2 . 3 7 2 15 . 3 Part Disruptions 4 | . . . . . . . . . . . . . . . . . . . . . . . . . . 2 . 1 . 1 Actively Blocked 4 | . . . . . . . . . . . . . . . . . . . . . . . . . . 2 . 1 . 1 Damage Taken 7877 | . 110 . . 62 536 58 130 117 . . 77 70 . 2026 161 236 45 48 . 116 . 398 119 128 384 418 325 1796 55 462 Core 5911 | . 84 . . 50 437 44 101 93 . . 59 57 . 1561 128 174 35 37 . 92 . 306 97 98 290 268 222 1269 35 374 Absorbed by Shields 3085 | . . . . . . 11 . . . . . . . . . 85 16 18 . 42 . 146 44 46 139 155 118 1852 59 354 Redirected to Core 5080 | . 78 . . 36 328 32 101 76 . . 55 42 . 1303 119 129 35 37 . 80 . 282 82 98 277 268 209 1164 35 214 Ignored by Resistances 3516 | . 36 . . 21 151 22 35 31 . . 27 20 . 510 44 85 16 18 . 65 . 184 55 52 119 150 131 1507 51 186 Regen/Repaired (Parts) 215 | . . . . . . . . . . . . . . 7 . . . . . . . . . . 3 56 15 109 16 9 Core Remaining (%) 88 | 100 . . . 99 75 . . . . 100 . . . . 100 . . . . 100 . . 100 . 76 . . 74 . 63 Volleys Fired 431 | 12 16 1 . 14 43 4 27 14 . 1 10 7 4 16 20 21 24 17 . 18 1 72 . 30 . . 7 22 12 18 Largest 3 | 3 3 3 . 3 3 3 3 3 . 3 3 3 3 3 3 3 3 3 . 3 3 3 . 3 . . 3 3 3 3 Hottest 855 | 90 165 180 . 180 195 240 240 225 . 225 225 225 225 193 193 193 193 227 . 227 227 227 . 227 . . 253 285 285 855 Shots Fired 1253 | 36 48 3 . 40 129 12 81 42 . 3 30 21 6 48 58 63 72 51 . 54 3 198 . 90 . . 17 62 36 50 Gun 1247 | 36 48 3 . 39 129 12 81 42 . 3 30 21 6 48 58 63 72 51 . 54 3 198 . 90 . . 16 60 36 48 Cannon . | . . . . . . . . . . . . . . . . . . . . . . . . . . . . . . . Launcher 1 | . . . . . . . . . . . . . . . . . . . . . . . . . . . . 1 . . Special 5 | . . . . 1 . . . . . . . . . . . . . . . . . . . . . . 1 1 . 2 Kinetic 42 | 24 18 . . . . . . . . . . . . . . . . . . . . . . . . . . . . . Thermal 989 | 12 30 3 . 40 129 12 81 42 . 3 30 21 6 32 38 42 48 34 . 36 2 126 . 60 . . 17 61 36 48 Explosive . | . . . . . . . . . . . . . . . . . . . . . . . . . . . . . . . Electromagnetic . | . . . . . . . . . . . . . . . . . . . . . . . . . . . . . . . Phasic 219 | . . . . . . . . . . . . . . 16 20 21 24 17 . 18 1 72 . 30 . . . . . . Robot Hit Streak 100 | 18 39 40 . 49 57 19 59 27 . 10 11 10 . 51 28 42 28 34 . 44 . 100 . 53 . . 12 26 28 62 Robot Miss Streak 2 | 1 . . . 1 1 1 2 1 . . 2 2 . 1 2 1 1 1 . 2 . 2 . 1 . . 1 1 . 1 Penetration Max . | . . . . . . . . . . . . . . . . . . . . . . . . . . . . . . . Secondary Targets 39 | . 2 . . 2 1 . 5 2 . . . . . 2 4 3 2 . . 1 . 10 . . . . . 1 1 3 Max Gunslinging Chain 2 | . 1 . . 2 1 . 1 1 . . . . . 1 1 2 1 . . 1 . 1 . . . . . 1 1 1 Shots Hit Robots 1171 | 22 38 1 . 26 98 10 59 31 . 2 9 17 . 91 47 35 45 40 . 42 . 167 15 62 25 24 30 172 25 38 Core Hits 517 | 8 18 2 . 13 37 8 62 17 . 1 1 8 . 33 18 24 23 11 . 20 . 73 4 23 8 12 10 57 7 19 Critical Kills . | . . . . . . . . . . . . . . . . . . . . . . . . . . . . . . . Critical Parts Destroyed . | . . . . . . . . . . . . . . . . . . . . . . . . . . . . . . . Critical Strikes 61 | 1 1 . . 1 5 . . 3 . . 1 3 . 10 2 2 3 4 . 5 . 10 1 3 6 . . . . . Burn 15 | 1 1 . . 1 5 . . 3 . . 1 3 . . . . . . . . . . . . . . . . . . Sever 14 | . . . . . . . . . . . . . . 7 . . . . . . . . 1 . 6 . . . . . Intensify 32 | . . . . . . . . . . . . . . 3 2 2 3 4 . 5 . 10 . 3 . . . . . . Melee Attacks 288 | . . . . . . . . . . . . . . 47 . . . . . . . . 15 . 34 32 26 134 . . Kinetic 154 | . . . . . . . . . . . . . . . . . . . . . . . . . . . 24 130 . . Impact . | . . . . . . . . . . . . . . . . . . . . . . . . . . . . . . . Slashing 121 | . . . . . . . . . . . . . . 47 . . . . . . . . 15 . 29 28 2 . . . Piercing 4 | . . . . . . . . . . . . . . . . . . . . . . . . . 4 . . . . . Sneak Attacks 29 | . . . . . . . . . . . . . . . . . . . . . . . . . 5 7 2 15 . . Combat Hostiles 5 | . . . . . . . . . . . . . . . . . . . . . . . . . 1 2 . 2 . . Follow-up Attacks 20 | . . . . . . . . . . . . . . 9 . . . . . . . . 4 . 4 3 . . . . Damage Inflicted 49553 | 276 546 55 . 485 2099 362 2016 885 . 70 256 482 . 3776 1838 1505 1781 1597 . 1795 . 7060 776 2729 2374 1862 1451 9846 1472 2159 Guns 33906 | 276 546 55 . 485 2099 362 2016 885 . 70 256 482 . 1750 1838 1505 1781 1597 . 1795 . 7060 . 2729 . . 512 2176 1472 2159 Cannons . | . . . . . . . . . . . . . . . . . . . . . . . . . . . . . . . Explosions 1734 | . . . . . . . . . . . . . . . . . . . . . . . . . . . . 1734 . . Melee 13913 | . . . . . . . . . . . . . . 2026 . . . . . . . . 776 . 2374 1862 939 5936 . . Ramming . | . . . . . . . . . . . . . . . . . . . . . . . . . . . . . . . Kinetic 6964 | 134 135 . . . . . . . . . . . . . . . . . . . . . . . . . 759 5936 . . Thermal 28543 | 142 411 55 . 485 2099 362 2016 885 . 70 256 482 . 1158 1246 987 1263 1079 . 1150 . 4503 . 1841 . . 512 3910 1472 2159 Explosive . | . . . . . . . . . . . . . . . . . . . . . . . . . . . . . . . Electromagnetic . | . . . . . . . . . . . . . . . . . . . . . . . . . . . . . . . Impact . | . . . . . . . . . . . . . . . . . . . . . . . . . . . . . . . Slashing 6742 | . . . . . . . . . . . . . . 2026 . . . . . . . . 776 . 1898 1862 180 . . . Piercing 476 | . . . . . . . . . . . . . . . . . . . . . . . . . 476 . . . . . Phasic 6828 | . . . . . . . . . . . . . . 592 592 518 518 518 . 645 . 2557 . 888 . . . . . . Highest Corruption 7 | . . . . . . . . . . . . . . . . . . . . . . . . . 7 . . 6 . . Average Corruption 2 | . . . . . . . . . . . . . . . . . . . . . . . . . 5 . . 1 . . Corruption Purged 6 | . . . . . . . . . . . . . . . . . . . . . . . . . . . . 6 . . Corruption Blocked . | . . . . . . . . . . . . . . . . . . . . . . . . . . . . . . . Effects 6 | . . . . . . . . . . . . . . . . . . . . . . . . . 1 . . 5 . . Message Errors 1 | . . . . . . . . . . . . . . . . . . . . . . . . . 1 . . . . . Matter Fused 1 | . . . . . . . . . . . . . . . . . . . . . . . . . . . . 1 . . Energy Discharges 1 | . . . . . . . . . . . . . . . . . . . . . . . . . . . . 1 . . Parts Rejected 1 | . . . . . . . . . . . . . . . . . . . . . . . . . . . . 1 . . Data Loss (minor) 1 | . . . . . . . . . . . . . . . . . . . . . . . . . . . . 1 . . Alerts 1 | . . . . . . . . . . . . . . . . . . . . . . . . . . . . 1 . . Overload Shots 3 | . . . . . . . . . . . . . . . . . . . . . . . . . . . . . . 3 Overflow Damage 1494 | . . . . . . . . . . . . . . 254 . . . . . . . . 10 . 553 59 100 518 . . Projectiles . | . . . . . . . . . . . . . . . . . . . . . . . . . . . . . . . Explosions . | . . . . . . . . . . . . . . . . . . . . . . . . . . . . . . . Melee 1494 | . . . . . . . . . . . . . . 254 . . . . . . . . 10 . 553 59 100 518 . . Knockbacks . | . . . . . . . . . . . . . . . . . . . . . . . . . . . . . . . Impact . | . . . . . . . . . . . . . . . . . . . . . . . . . . . . . . . Kinetic . | . . . . . . . . . . . . . . . . . . . . . . . . . . . . . . . Secondary . | . . . . . . . . . . . . . . . . . . . . . . . . . . . . . . . Self-Inflicted Damage 104 | . . . . . . . . . . . . . . . . 104 . . . . . . . . . . . . . . Shots 2 | . . . . . . . . . . . . . . . . 2 . . . . . . . . . . . . . . Rammed . | . . . . . . . . . . . . . . . . . . . . . . . . . . . . . . . Targets Rammed . | . . . . . . . . . . . . . . . . . . . . . . . . . . . . . . . Kicked . | . . . . . . . . . . . . . . . . . . . . . . . . . . . . . . . Crushed . | . . . . . . . . . . . . . . . . . . . . . . . . . . . . . . . Highest Temperature 748 | . . . . . 185 . 8 8 . . 5 14 . 86 34 85 156 12 222 2 . 5 42 11 . . . 180 46 748 Average Temperature 44 | . . . . . 73 . 5 5 . . 5 14 . 37 12 36 76 9 120 2 . 5 23 7 . . . 25 22 215 Received Heat Transfer 1660 | . 57 . . 30 171 24 54 42 . . 24 45 . 600 27 . 18 15 . 48 . 48 9 21 . 20 18 381 8 . Effects 5 | . . . . . . . . . . . . . . . . . . . . . . . . . . . . . . 5 Shutdowns 1 | . . . . . . . . . . . . . . . . . . . . . . . . . . . . . . 1 Energy Bleed 1 | . . . . . . . . . . . . . . . . . . . . . . . . . . . . . . 1 Damage (major) 2 | . . . . . . . . . . . . . . . . . . . . . . . . . . . . . . 2 Damage (core) 1 | . . . . . . . . . . . . . . . . . . . . . . . . . . . . . . 1 Siege Activations . | . . . . . . . . . . . . . . . . . . . . . . . . . . . . . . . Martial Activations . | . . . . . . . . . . . . . . . . . . . . . . . . . . . . . . . Shielding Activations . | . . . . . . . . . . . . . . . . . . . . . . . . . . . . . . . Robots Disrupted 2 | . . . . . . . . . . . . . . . . . . . . . . . . . . . . 2 . . Combat Hostiles 2 | . . . . . . . . . . . . . . . . . . . . . . . . . . . . 2 . . Robots Corrupted . | . . . . . . . . . . . . . . . . . . . . . . . . . . . . . . . Combat Hostiles . | . . . . . . . . . . . . . . . . . . . . . . . . . . . . . . . Parts Fried 3 | . . . . . . . . . . . . . . . . . . . . . . 1 . . . . . 2 . . Impact Corruptions . | . . . . . . . . . . . . . . . . . . . . . . . . . . . . . . . Robots Melted 3 | . . . . . 1 . . . . . 1 . . . . . . . . . . 1 . . . . . . . . Combat Hostiles 3 | . . . . . 1 . . . . . 1 . . . . . . . . . . 1 . . . . . . . . Parts Melted 52 | . . 2 . 5 8 3 8 1 . . 1 3 . 3 2 1 1 3 . 1 . 5 . 2 . . . 1 1 1 Heat Transferred 28168 | 444 1036 111 . 1147 4033 650 3486 1332 . 74 407 851 . 1110 1110 888 1147 925 . 962 . 3735 . 1443 . . 481 842 888 1066 Parts Sabotaged . | . . . . . . . . . . . . . . . . . . . . . . . . . . . . . . . Parts Stolen . | . . . . . . . . . . . . . . . . . . . . . . . . . . . . . . . Parts Stripped 417 | . . . . . . . . . . . . . . . . . . . . . . . . . . . 55 362 . . Power Chain Reactions . | . . . . . . . . . . . . . . . . . . . . . . . . . . . . . . . Alert | -11 -10 -10 -10 -9 -8 -7 -7 -7 -7 -6 -6 -6 -6 -6 -5 -5 -5 -5 -5 -4 -4 -4 -4 -3 -3 -2 -2 -2 -1 -1 ------- Run | Yrd Mat Min Exi Min Mat Fac Low Low Dat Pro Fac Low Zio Dee Pro Fac Upp Upp War Pro Fac Ext Cet Res Tes Res Qua Frg Acc Com Maximum Alert Level 5 | . . . . . 1 . . . . . . . . . . 1 . . . . . 4 3 2 . 1 1 5 4 4 Low Security (%) 59 | 100 100 100 . 100 76 100 . . . . 100 . . . . 95 . . . . 100 59 . 39 100 95 33 21 . . Level 1 11 | . . . . . 23 . . . . . . . . . . 4 . . . . . 10 . . . 4 66 17 . . Level 2 10 | . . . . . . . . . . . . . . . . . . . . . . 17 10 60 . . . 22 . . Level 3 15 | . . . . . . . . . . . . . . . . . . . . . . 6 89 . . . . 36 . 52 Level 4 3 | . . . . . . . . . . . . . . . . . . . . . . 6 . . . . . . 100 47 Level 5 . | . . . . . . . . . . . . . . . . . . . . . . . . . . . . 2 . . High Security . | . . . . . . . . . . . . . . . . . . . . . . . . . . . . . . . Max Security . | . . . . . . . . . . . . . . . . . . . . . . . . . . . . . . . Peak Influence 2148 | 15 127 46 . 156 319 142 . . . . 32 . . . . 330 . . . . 91 1164 873 598 127 220 262 2148 1439 1272 Initial 1284 | . . 36 . . 56 140 . . . . . . . . . 138 . . . . 91 . 647 475 41 71 123 135 1284 920 Average 310 | 2 62 21 . 106 118 127 . . . . 6 . . . . 109 . . . . 18 321 774 353 22 70 215 573 1324 1094 Influence Increases 10627 | 35 284 10 . 236 546 49 426 250 . 34 33 129 . . 340 660 310 160 . 245 6 1616 326 434 268 506 319 2798 185 422 Destroy 0b10 Robot/C 5440 | . 180 . . 180 320 20 360 220 . 20 20 100 . . 220 260 300 140 . 160 . 880 140 200 80 120 160 1120 40 200 Destroy 0b10 Robot/NC 315 | 35 20 10 . 10 20 15 . . . . . . . . 5 30 . . . 10 . 20 10 30 15 10 15 45 15 . Destroy Leader 702 | . 38 . . 30 96 14 20 20 . 10 10 20 . . 10 60 10 20 . 30 . 84 . 48 4 22 6 96 4 50 Allied During Kill 682 | . . . . . . . 1 10 . 4 . 9 . . . . . . . . . 479 148 31 . . . . . . Trap Triggered on 0b10 50 | . . . . . . . . . . . . . . . . . . . . . . . . 10 . . . . . 40 Select Force Hacks 30 | . 30 . . . . . . . . . . . . . . . . . . . . . . . . . . . . . Disable Machine 645 | . 15 . . 15 15 . . . . . . . . . . 105 . . . . . 45 . . 75 45 105 165 30 30 Destroy Structure 1433 | . 1 . . 1 5 . . . . . 3 . . . . 100 . . . . 6 18 28 40 4 99 18 1077 21 12 Partial Spotted 180 | . . . . . . . . . . . . . . . . . . . . . . 45 . 15 15 15 15 60 . 15 Lose Combat Pursuer 1050 | . . . . . 90 . 45 . . . . . . . 105 105 . . . 45 . 45 . 60 75 195 . 135 75 75 Miscellaneous 100 | . . . . . . . . . . . . . . . . . . . . . . . . . . . . 100 . . Influence Decreases 9355 | 35 190 104 . 90 383 239 275 152 368 34 31 112 19 . 120 730 136 113 371 100 151 460 689 1153 215 413 297 898 888 589 Entered New Map 3926 | . . 58 . . 90 169 45 52 368 . . 2 19 . . 82 56 63 371 . 54 . 509 318 33 56 97 107 858 519 Time Decay 2998 | 35 170 46 . 90 125 70 230 100 . 34 31 90 . . 120 149 80 50 . 100 6 270 160 130 116 90 180 446 30 50 Lost Part 10 | . . . . . . . . . . . . . . . . . . . . . . . . . . . . 10 . . Lost Ally 666 | . . . . . . . . . . . . 20 . . . 10 . . . . . 190 20 140 . 186 20 60 . 20 Purge Threat 1755 | . 20 . . . 168 . . . . . . . . . . 489 . . . . 91 . . 565 66 81 . 275 . . Squads Dispatched 39 | . 1 . . . 4 1 . . . . . . . . . 5 . . . . . 2 . 4 8 1 3 4 3 3 Investigation 8 | . 1 . . . . . . . . . . . . . . 1 . . . . . . . 1 1 . . 1 1 2 Extermination 9 | . . . . . . . . . . . . . . . . 1 . . . . . . . 1 2 . 2 2 . 1 Reinforcement 13 | . . . . . 4 . . . . . . . . . . 3 . . . . . . . 2 . 1 1 1 1 . Assault 4 | . . . . . . . . . . . . . . . . . . . . . . 2 . . 2 . . . . . Garrison 5 | . . . . . . 1 . . . . . . . . . . . . . . . . . . 3 . . . 1 . Intercept . | . . . . . . . . . . . . . . . . . . . . . . . . . . . . . . . Searches Triggered . | . . . . . . . . . . . . . . . . . . . . . . . . . . . . . . . Construction Impeded . | . . . . . . . . . . . . . . . . . . . . . . . . . . . . . . . Haulers Reinforced 2 | . . . . . . . . . . . . . . . . . . . . . . . . . . 1 . . 1 . Active Scanning Responses . | . . . . . . . . . . . . . . . . . . . . . . . . . . . . . . . Cargo Convoy Interrupts . | . . . . . . . . . . . . . . . . . . . . . . . . . . . . . . . Stealth | -11 -10 -10 -10 -9 -8 -7 -7 -7 -7 -6 -6 -6 -6 -6 -5 -5 -5 -5 -5 -4 -4 -4 -4 -3 -3 -2 -2 -2 -1 -1 --------- Run | Yrd Mat Min Exi Min Mat Fac Low Low Dat Pro Fac Low Zio Dee Pro Fac Upp Upp War Pro Fac Ext Cet Res Tes Res Qua Frg Acc Com Distress Signals 11 | . . . . . . . . . . . . . . . . . . . . . . 2 1 1 1 5 . . . 1 Communications Jammed 272 | . . . . . . . . . . . . . . . . 3 . . 1 . . 32 200 15 15 5 . 1 . . Distress Signals 270 | . . . . . . . . . . . . . . . . 3 . . 1 . . 32 200 14 15 5 . . . . Times Spotted 483 | . 11 . . 9 21 2 24 10 . . 1 4 . 54 14 27 7 4 2 11 1 42 10 20 21 50 13 77 13 35 Peak Tracking Total 37 | . 4 . . 4 9 1 7 2 . . 1 2 . 37 9 7 2 1 2 2 1 16 5 6 10 12 2 13 6 20 Tactical Retreats 31 | . . . . . 2 . 1 . . . . . . 1 2 2 . . . 2 . 1 . 2 2 5 . 7 1 3 Traps | -11 -10 -10 -10 -9 -8 -7 -7 -7 -7 -6 -6 -6 -6 -6 -5 -5 -5 -5 -5 -4 -4 -4 -4 -3 -3 -2 -2 -2 -1 -1 ------- Run | Yrd Mat Min Exi Min Mat Fac Low Low Dat Pro Fac Low Zio Dee Pro Fac Upp Upp War Pro Fac Ext Cet Res Tes Res Qua Frg Acc Com Traps Triggered 3 | . . . . . . 1 . . . . . . . . . . . . . . . . . . . . . 2 . . Indirectly . | . . . . . . . . . . . . . . . . . . . . . . . . . . . . . . . Trap Hack Attempts . | . . . . . . . . . . . . . . . . . . . . . . . . . . . . . . . Triggered . | . . . . . . . . . . . . . . . . . . . . . . . . . . . . . . . Disarmed 5 | . . . . . . . . . . . . . . . . . . . . . . . . . 4 . . . . 1 Reprogrammed 40 | . . . . . . . . . . . . . . . . . . . . . . 7 . 12 . 16 . . . 5 Reused 5 | . . . . . . . . . . . . . . . . . . . . . . . . 1 . . . . . 4 Traps Extracted . | . . . . . . . . . . . . . . . . . . . . . . . . . . . . . . . Installed . | . . . . . . . . . . . . . . . . . . . . . . . . . . . . . . . Triggered 5 | . . . . . . . . . . . . . . . . . . . . . . . . 1 . . . . . 4 Machines | -11 -10 -10 -10 -9 -8 -7 -7 -7 -7 -6 -6 -6 -6 -6 -5 -5 -5 -5 -5 -4 -4 -4 -4 -3 -3 -2 -2 -2 -1 -1 ---------- Run | Yrd Mat Min Exi Min Mat Fac Low Low Dat Pro Fac Low Zio Dee Pro Fac Upp Upp War Pro Fac Ext Cet Res Tes Res Qua Frg Acc Com Machines Disabled 56 | . 1 . . 1 1 . . 1 . . . . 3 . . 7 4 1 . . . 5 . . 5 3 7 13 2 2 Max in Single Turn 4 | . 1 . . 1 1 . . 1 . . . . 1 . . 4 1 1 . . . 1 . . 1 1 1 3 2 1 Garrison Access 10 | . . . . . . 1 . . . . 1 . . . . 2 . . . . . . . 1 1 2 1 1 . . Machines Repaired . | . . . . . . . . . . . . . . . . . . . . . . . . . . . . . . . Machines Dismantled 2 | . . . . . . . . . . . . . . . . . . . . . . . . . . . 2 . . . Machines Sabotaged . | . . . . . . . . . . . . . . . . . . . . . . . . . . . . . . . Overloaded Fab Kills . | . . . . . . . . . . . . . . . . . . . . . . . . . . . . . . . Hacking | -11 -10 -10 -10 -9 -8 -7 -7 -7 -7 -6 -6 -6 -6 -6 -5 -5 -5 -5 -5 -4 -4 -4 -4 -3 -3 -2 -2 -2 -1 -1 --------- Run | Yrd Mat Min Exi Min Mat Fac Low Low Dat Pro Fac Low Zio Dee Pro Fac Upp Upp War Pro Fac Ext Cet Res Tes Res Qua Frg Acc Com Machines Accessed 103 | . 5 1 4 . 5 7 1 3 3 . 2 . . . . 14 1 . 6 . 4 4 . 9 13 4 2 7 2 6 Terminals 56 | . 3 . . . 4 2 . . . . . . . . . 10 1 . . . 3 4 . 3 10 1 1 6 2 6 Fabricators 7 | . . . . . . 1 . . . . . . . . . 1 . . . . . . . 3 1 1 . . . . Repair Stations 1 | . . . . . . 1 . . . . . . . . . . . . . . . . . . . . . . . . Recycling Units 9 | . 2 . . . 1 2 . . . . 1 . . . . 1 . . . . . . . 2 . . . . . . Scanalyzers 2 | . . . . . . . . . . . . . . . . . . . . . 1 . . . 1 . . . . . Garrison Access 10 | . . . . . . 1 . . . . 1 . . . . 2 . . . . . . . 1 1 2 1 1 . . Total Hacks 317 | . 12 1 49 . 23 9 1 6 16 . 2 . . . . 32 5 . 15 . 13 11 . 24 34 14 4 17 5 24 Successful 315 | . 12 1 49 . 23 9 1 6 16 . 2 . . . . 32 5 . 15 . 13 11 . 24 33 13 4 17 5 24 Failed 2 | . . . . . . . . . . . . . . . . . . . . . . . . . 1 1 . . . . Catastrophic . | . . . . . . . . . . . . . . . . . . . . . . . . . . . . . . . Database Lockouts . | . . . . . . . . . . . . . . . . . . . . . . . . . . . . . . . Manual 99 | . 4 . . . 12 4 . . 1 . . . . . . 13 . . 2 . 7 5 . 7 14 8 3 6 3 10 Terminals 192 | . 9 . . . 22 4 . . . . . . . . . 26 5 . . . 9 11 . 16 31 11 3 16 5 24 Fabricators 10 | . . . . . . 1 . . . . . . . . . 3 . . . . . . . 4 1 1 . . . . Repair Stations 1 | . . . . . . 1 . . . . . . . . . . . . . . . . . . . . . . . . Recycling Units 11 | . 3 . . . 1 2 . . . . 1 . . . . 1 . . . . . . . 3 . . . . . . Scanalyzers 5 | . . . . . . . . . . . . . . . . . . . . . 4 . . . 1 . . . . . Garrison Access 10 | . . . . . . 1 . . . . 1 . . . . 2 . . . . . . . 1 1 2 1 1 . . Terminal Hacks 229 | . 9 1 49 . 13 2 1 6 16 . . . . . . 19 5 . 15 . 6 6 . 15 23 8 2 10 4 19 Record 86 | . . . 49 . . . . 4 11 . . . . . . . 5 . 13 . . . . 1 3 . . . . . Part Schematic 6 | . . . . . . . . . 2 . . . . . . 1 . . . . . . . . 3 . . . . . Robot Analysis 7 | . 1 . . . 1 . . . . . . . . . . 1 . . . . . . . . . . . 1 . 3 Prototype ID Bank 27 | . 2 . . . 3 1 . . 3 . . . . . . 4 . . . . 1 1 . 2 1 . . 2 1 6 Open Door 8 | . . 1 . . . . 1 2 . . . . . . . . . . 2 . 1 . . . 1 . . . . . Level Access Points 4 | . . . . . 1 . . . . . . . . . . . . . . . . . . . 1 . 1 . 1 . Branch Access Points 11 | . 1 . . . 1 1 . . . . . . . . . 2 . . . . 1 . . 1 1 1 1 . 1 . Emergency Access Points 1 | . . . . . . . . . . . . . . . . 1 . . . . . . . . . . . . . . Machine Index 1 | . . . . . . . . . . . . . . . . . . . . . . . . . . . . . 1 . Terminal Index 4 | . . . . . . . . . . . . . . . . . . . . . 1 . . . 2 . . . . 1 Alert Level 1 | . 1 . . . . . . . . . . . . . . . . . . . . . . . . . . . . . Unreport Threat 26 | . 1 . . . 3 . . . . . . . . . . 7 . . . . 2 . . 5 2 2 . 4 . . Locate Traps 4 | . . . . . 1 . . . . . . . . . . 1 . . . . . . . 1 . . . 1 . . Disarm Traps 4 | . . . . . . . . . . . . . . . . . . . . . . . . . 2 . . . . 2 Reprogram Traps 18 | . . . . . . . . . . . . . . . . . . . . . . 4 . 5 . 4 . . . 5 Dispatch Records 1 | . . . . . . . . . . . . . . . . . . . . . . 1 . . . . . . . . Recall Investigation 3 | . 1 . . . . . . . . . . . . . . . . . . . . . . . 2 . . . . . Recall Reinforcements 2 | . . . . . 1 . . . . . . . . . . 1 . . . . . . . . . . . . . . Registered Components 3 | . 1 . . . 1 . . . . . . . . . . . . . . . . . . . . . . . . 1 Registered Prototypes 7 | . 1 . . . 1 . . . . . . . . . . 1 . . . . . . . . 1 1 . 1 . 1 Proto ID Catalog 1 | . . . . . . . . . . . . . . . . . . . . . . . . . . . . 1 . . Protovariant Controls 4 | . . . . . . . . . . . . . . . . . . . . . . . . . 4 . . . . . Fabricator Hacks 3 | . . . . . . 1 . . . . . . . . . 2 . . . . . . . . . . . . . . Network Status 1 | . . . . . . 1 . . . . . . . . . . . . . . . . . . . . . . . . Load Schematic 1 | . . . . . . . . . . . . . . . . 1 . . . . . . . . . . . . . . Build 1 | . . . . . . . . . . . . . . . . 1 . . . . . . . . . . . . . . Repair Station Hacks . | . . . . . . . . . . . . . . . . . . . . . . . . . . . . . . . Recycling Unit Hacks 10 | . 2 . . . 1 2 . . . . 1 . . . . 1 . . . . . . . 3 . . . . . . Retrieve Components 10 | . 2 . . . 1 2 . . . . 1 . . . . 1 . . . . . . . 3 . . . . . . Scanalyzer 5 | . . . . . . . . . . . . . . . . . . . . . 4 . . . 1 . . . . . Retrieve Study 5 | . . . . . . . . . . . . . . . . . . . . . 4 . . . 1 . . . . . Garrison Access Hacks 10 | . . . . . . 1 . . . . 1 . . . . 2 . . . . . . . 1 1 2 1 1 . . Seal Access 10 | . . . . . . 1 . . . . 1 . . . . 2 . . . . . . . 1 1 2 1 1 . . Unauthorized Hacks 57 | . 1 . . . 9 3 . . . . . . . . . 8 . . . . 3 4 . 5 8 3 1 6 1 5 Terminals 48 | . . . . . 9 2 . . . . . . . . . 7 . . . . 3 4 . 1 7 2 1 6 1 5 Assimilate 11 | . . . . . . . . . . . . . . . . 2 . . . . 1 . . 1 . 1 . 1 . 5 Botnet 5 | . . . . . 4 1 . . . . . . . . . . . . . . . . . . . . . . . . Disrupt 1 | . . . . . . . . . . . . . . . . . . . . . . . . . . . . . 1 . Operators 1 | . . . . . 1 . . . . . . . . . . . . . . . . . . . . . . . . . Skim 30 | . . . . . 4 1 . . . . . . . . . 5 . . . . 2 4 . . 7 1 1 5 . . Fabricators 7 | . . . . . . . . . . . . . . . . 1 . . . . . . . 4 1 1 . . . . Report 1 | . . . . . . . . . . . . . . . . . . . . . . . . 1 . . . . . . Prioritize 1 | . . . . . . . . . . . . . . . . 1 . . . . . . . . . . . . . . Fabnet 5 | . . . . . . . . . . . . . . . . . . . . . . . . 3 1 1 . . . . Repair Stations 1 | . . . . . . 1 . . . . . . . . . . . . . . . . . . . . . . . . Mechanics 1 | . . . . . . 1 . . . . . . . . . . . . . . . . . . . . . . . . Recycling Units 1 | . 1 . . . . . . . . . . . . . . . . . . . . . . . . . . . . . Tunnel 1 | . 1 . . . . . . . . . . . . . . . . . . . . . . . . . . . . . Scanalyzers . | . . . . . . . . . . . . . . . . . . . . . . . . . . . . . . . Garrison Access . | . . . . . . . . . . . . . . . . . . . . . . . . . . . . . . . Data Cores Recovered 2 | . . . . . . . . . . . . . . . . . . . . . . . . . 1 . . . 1 . Used . | . . . . . . . . . . . . . . . . . . . . . . . . . . . . . . . Hacking Detections 26 | . 1 . . . 3 . . . . . 1 . . . . 5 1 . . . 2 1 . 4 3 2 . 2 . 1 Full Trace Events 1 | . . . . . . . . . . . . . . . . 1 . . . . . . . . . . . . . . Feedback Events . | . . . . . . . . . . . . . . . . . . . . . . . . . . . . . . . Feedback Blocked . | . . . . . . . . . . . . . . . . . . . . . . . . . . . . . . . Robot Schematics Acquired 8 | . . . . . . . . . . . . . 3 . . . . . . . . . . . 3 . . 2 . . Robots Built . | . . . . . . . . . . . . . . . . . . . . . . . . . . . . . . . Authchips . | . . . . . . . . . . . . . . . . . . . . . . . . . . . . . . . Time . | . . . . . . . . . . . . . . . . . . . . . . . . . . . . . . . Total Robot Build Rating . | . . . . . . . . . . . . . . . . . . . . . . . . . . . . . . . Part Schematics Acquired 35 | . . . . . . . . . 2 . . . 16 . . 1 . . . . . . . . 9 . 5 2 . . Parts Built 2 | . . . . . . . . . . . . . . . . 2 . . . . . . . . . . . . . . Authchips . | . . . . . . . . . . . . . . . . . . . . . . . . . . . . . . . Time 47 | . . . . . . . . . . . . . . . . 47 . . . . . . . . . . . . . . Total Part Build Rating 10 | . . . . . . . . . . . . . . . . 10 . . . . . . . . . . . . . . Part Studies Acquired 5 | . . . . . . . . . . . . . . . . . . . . . 4 . . . 1 . . . . . Parts Repaired . | . . . . . . . . . . . . . . . . . . . . . . . . . . . . . . . Time . | . . . . . . . . . . . . . . . . . . . . . . . . . . . . . . . Parts Recycled . | . . . . . . . . . . . . . . . . . . . . . . . . . . . . . . . Recycled Matter . | . . . . . . . . . . . . . . . . . . . . . . . . . . . . . . . Retrieved Matter . | . . . . . . . . . . . . . . . . . . . . . . . . . . . . . . . Retrieved Components 24 | . 11 . . . 2 2 . . . . 3 . . . . 3 . . . . . . . 3 . . . . . . Parts Scanalyzed . | . . . . . . . . . . . . . . . . . . . . . . . . . . . . . . . Part Schematics Acquired . | . . . . . . . . . . . . . . . . . . . . . . . . . . . . . . . Parts Damaged . | . . . . . . . . . . . . . . . . . . . . . . . . . . . . . . . Bothacking | -11 -10 -10 -10 -9 -8 -7 -7 -7 -7 -6 -6 -6 -6 -6 -5 -5 -5 -5 -5 -4 -4 -4 -4 -3 -3 -2 -2 -2 -1 -1 ------------ Run | Yrd Mat Min Exi Min Mat Fac Low Low Dat Pro Fac Low Zio Dee Pro Fac Upp Upp War Pro Fac Ext Cet Res Tes Res Qua Frg Acc Com Used RIF Installer . | . . . . . . . . . . . . . . . . . . . . . . . . . . . . . . . Robots Hacked 16 | . . . . . . . . . . . . . . . . . . . . . . . . . 1 7 2 6 . . Non-combat 1 | . . . . . . . . . . . . . . . . . . . . . . . . . . 1 . . . . Combat 15 | . . . . . . . . . . . . . . . . . . . . . . . . . 1 6 2 6 . . Robot Hacks Applied 8 | . . . . . . . . . . . . . . . . . . . . . . . . . 1 3 . 4 . . parse_system 8 | . . . . . . . . . . . . . . . . . . . . . . . . . 1 3 . 4 . . Manual 1 | . . . . . . . . . . . . . . . . . . . . . . . . . . 1 . . . . Relay Couplers Released . | . . . . . . . . . . . . . . . . . . . . . . . . . . . . . . . Fabnet Peak Effective % 12 | . . . . . . . . . . . . . . . . . . . . . . . . . . 12 12 12 4 4 Autooverrided 8 | . . . . . . . . . . . . . . . . . . . . . . . . . . 4 2 2 . . Robots Rewired 22 | . . . . . . . 2 . . . . . . . . . . . 5 . . 14 . . . . . 1 . . Allies Hacked 1 | . . . . . . . . . . . . . . . . . . . . . . . . . . 1 . . . . Hacks Repelled . | . . . . . . . . . . . . . . . . . . . . . . . . . . . . . . . Allies | -11 -10 -10 -10 -9 -8 -7 -7 -7 -7 -6 -6 -6 -6 -6 -5 -5 -5 -5 -5 -4 -4 -4 -4 -3 -3 -2 -2 -2 -1 -1 -------- Run | Yrd Mat Min Exi Min Mat Fac Low Low Dat Pro Fac Low Zio Dee Pro Fac Upp Upp War Pro Fac Ext Cet Res Tes Res Qua Frg Acc Com Total Allies 57 | . . . . . . . 2 . . . . . 3 . . 2 . . 5 . 1 25 . 1 . 10 2 4 . 2 Largest Group 15 | . . . . . . . 2 2 2 2 2 2 4 . . 2 . . 5 . 1 15 11 10 . 4 1 2 . 2 Highest-Rated Group 755 | . . . . . . . 46 46 46 46 46 46 105 . . 36 . . 281 . 26 755 602 559 . 653 64 127 . 85 Highest-Rated Ally 369 | . . . . . . . 30 30 30 30 30 30 35 . . 26 . . 64 . 26 159 152 152 . 369 64 82 . 45 Total Orders 1 | . . . . . . . 1 . . . . . . . . . . . . . . . . . . . . . . . EXPLORE 1 | . . . . . . . 1 . . . . . . . . . . . . . . . . . . . . . . . Ally Attacks 241 | . . . . . . . 15 . . . . 8 . . . . . . . . . 81 46 36 . 41 4 10 . . Total Damage 11404 | . . . . . . . 34 . . . . 152 . . . . . . . . . 2141 1507 973 . 6203 223 171 . . Kills 40 | . . . . . . . . . . . . 1 . . . . . . . . . 11 7 6 . 14 1 . . . Allies Corrupted 2 | . . . . . . . . . . . . . . . . . . . . . . . . . . 1 . . . 1 Allies Melted 1 | . . . . . . . . . . . . . . . . . . . . . . . . . . 1 . . . . Intel | -11 -10 -10 -10 -9 -8 -7 -7 -7 -7 -6 -6 -6 -6 -6 -5 -5 -5 -5 -5 -4 -4 -4 -4 -3 -3 -2 -2 -2 -1 -1 ------- Run | Yrd Mat Min Exi Min Mat Fac Low Low Dat Pro Fac Low Zio Dee Pro Fac Upp Upp War Pro Fac Ext Cet Res Tes Res Qua Frg Acc Com Active Infowar (turns) 8601 | 54 394 117 112 217 295 140 484 205 34 184 123 196 303 860 245 367 165 119 305 218 54 598 338 275 344 208 360 1103 65 119 Terrain 8582 | 54 394 117 112 217 295 140 484 205 34 184 123 196 303 860 245 367 165 119 305 218 54 598 338 275 344 208 341 1103 65 119 Structural 3113 | . 39 117 112 217 295 140 484 205 34 184 123 196 303 664 . . . . . . . . . . . . . . . . Traps 6193 | . . . . . . . . . . . 80 196 303 733 245 367 165 119 305 218 54 598 338 275 342 208 360 1103 65 119 Cloaking 3235 | . . . . . . . . . . . . . . . . . . . 245 218 54 598 338 275 341 208 360 598 . . Jamming 6592 | . . . . . 46 140 484 205 34 184 123 196 303 827 245 367 165 119 305 218 54 598 338 275 344 208 360 454 . . Robot Analysis Total 5 | . 1 . . . 1 . . . . . . . . . . 1 . . . . . . . . . . . . . 2 Derelict Logs Recovered 17 | . . 1 . 3 . . 2 1 . 3 . . . . 2 . 1 2 . 2 . . . . . . . . . . Drone Launches 3 | . . . . . . . 3 . . . . . . . . . . . . . . . . . . . . . . . Drone Recoveries 3 | . . . . . . . 3 . . . . . . . . . . . . . . . . . . . . . . . Exploration | -11 -10 -10 -10 -9 -8 -7 -7 -7 -7 -6 -6 -6 -6 -6 -5 -5 -5 -5 -5 -4 -4 -4 -4 -3 -3 -2 -2 -2 -1 -1 ------------- Run | Yrd Mat Min Exi Min Mat Fac Low Low Dat Pro Fac Low Zio Dee Pro Fac Upp Upp War Pro Fac Ext Cet Res Tes Res Qua Frg Acc Com Turns Passed 8733 | 186 394 117 112 217 295 140 484 205 34 184 123 196 303 860 245 367 165 119 305 218 54 598 338 275 344 208 360 1103 65 119 Spaces Moved 18990 | 120 333 207 324 495 374 351 846 365 83 582 248 278 848 1260 615 849 429 383 1045 860 260 792 448 873 920 649 735 2688 237 493 Core 21 | 8 . . . . . . . . . . . . . . . . . . 6 . . 7 . . . . . . . . Treads . | . . . . . . . . . . . . . . . . . . . . . . . . . . . . . . . Legs 347 | 112 235 . . . . . . . . . . . . . . . . . . . . . . . . . . . . . Wheels . | . . . . . . . . . . . . . . . . . . . . . . . . . . . . . . . Hover . | . . . . . . . . . . . . . . . . . . . . . . . . . . . . . . . Flight 18622 | . 98 207 324 495 374 351 846 365 83 582 248 278 848 1260 615 849 429 383 1039 860 260 785 448 873 920 649 735 2688 237 493 Fastest Speed 5 | 50 34 34 34 28 26 25 24 23 23 23 23 23 23 23 23 5 15 15 5 15 15 15 5 15 15 15 15 5 10 6 Average Speed 20 | 115 94 34 34 28 27 25 24 23 23 23 23 23 23 23 23 22 15 15 14 15 15 15 14 15 15 15 15 10 10 9 Slowest Speed 120 | 120 120 34 34 34 28 26 25 24 23 23 23 23 23 26 23 26 15 15 100 15 15 100 15 18 15 15 15 16 10 10 Overloaded Moves 530 | . . . . . . . . . . . . . . . . 3 . . 55 . . . 25 . . . . 337 . 110 Propulsion Burnouts . | . . . . . . . . . . . . . . . . . . . . . . . . . . . . . . . Robots Hopped 110 | . . . . 4 2 1 1 . . 1 3 . . . . 8 . 2 . . 1 19 1 7 9 34 8 2 1 6 Potential Cave-ins 1 | . . . . . . . . . . . . . . . . 1 . . . . . . . . . . . . . . Cave-ins Triggered . | . . . . . . . . . . . . . . . . . . . . . . . . . . . . . . . Exploration Rate (%) 59 | 5 64 58 80 93 35 12 93 62 75 89 9 58 84 87 85 38 68 77 94 90 10 91 77 34 91 24 73 45 12 26 Regions Visited 30 Branch Regions 21 Pre-discovered Areas 9 | . 1 . 1 1 . . 1 1 1 . . . 1 . 1 . . . . 1 . . . . . . . . . . Known Exits Taken 26 | . 1 . . . 1 1 1 1 1 1 1 1 1 1 1 1 1 1 1 1 1 1 1 1 1 1 1 1 1 . Unknown Exits Taken 4 | 1 . 1 1 1 . . . . . . . . . . . . . . . . . . . . . . . . . . Scrap Searched 28 | . . 3 . 2 . . 5 1 . 4 . 2 1 . 3 . 1 3 . 3 . . . . . . . . . . Spaces Dug 35 | . . . . 1 . . . . . . 1 . . . . 8 3 . . 2 3 . . 6 2 2 4 3 . . Terrain Destroyed 793 | . . . . 1 5 . 8 5 . 1 3 2 . 1 9 53 13 7 . 8 3 10 . 20 2 2 6 625 7 2 Melee 10 | . . . . . . . . . . . . . . . . . . . . . . . . . 2 2 3 3 . . Projectile 125 | . . . . 1 5 . 8 5 . 1 3 2 . 1 9 13 13 7 . 8 3 10 . 20 . . 3 4 7 2 AOE 658 | . . . . . . . . . . . . . . . . 40 . . . . . . . . . . . 618 . . Terrain Rammed . | . . . . . . . . . . . . . . . . . . . . . . . . . . . . . . . Walls Destroyed . | . . . . . . . . . . . . . . . . . . . . . . . . . . . . . . . Machines Disabled . | . . . . . . . . . . . . . . . . . . . . . . . . . . . . . . . Actions | -11 -10 -10 -10 -9 -8 -7 -7 -7 -7 -6 -6 -6 -6 -6 -5 -5 -5 -5 -5 -4 -4 -4 -4 -3 -3 -2 -2 -2 -1 -1 --------- Run | Yrd Mat Min Exi Min Mat Fac Low Low Dat Pro Fac Low Zio Dee Pro Fac Upp Upp War Pro Fac Ext Cet Res Tes Res Qua Frg Acc Com Total 22677 | 139 379 251 325 532 473 392 1057 453 97 629 289 394 951 1758 684 991 491 416 1194 921 271 1142 708 971 1077 680 902 3316 257 537 Wait 1856 | . 3 33 2 12 6 3 127 55 15 39 19 101 91 292 27 67 17 8 119 25 12 231 203 14 50 9 20 234 2 20 Move 18759 | 119 332 206 323 488 369 348 843 364 82 579 241 277 847 1259 614 832 428 378 1044 859 257 755 445 858 903 592 719 2683 234 481 Hop 89 | . . . . 2 2 1 1 . . 1 3 . . . . 8 . 2 . . 1 16 1 7 7 22 7 2 1 5 Pick Up 109 | 1 5 2 . 1 6 1 10 3 . 3 2 1 1 7 5 10 2 3 . 3 . 8 4 4 5 5 5 12 . . Fast Attach 150 | 7 4 1 . 4 8 8 3 4 . 1 2 . . 15 . 15 1 1 8 . . 1 2 11 11 1 9 33 . . Attach 128 | . 4 . . 2 7 . 2 . . . . . 4 20 . 1 1 . 2 . . . 11 7 20 4 13 29 . 1 Detach 195 | . 6 . . 3 11 5 4 2 . 1 2 . 3 35 . 2 1 . 5 . . . 9 17 29 3 16 40 . 1 Swap 20 | . 1 . . . 1 . 1 . . . 1 1 . 1 1 3 . . 1 1 . . . . 1 . 1 5 . 1 Drop 217 | . 6 2 . 1 10 10 11 4 . 3 4 2 1 20 2 25 3 3 7 3 . 8 6 15 15 4 15 36 . 1 Fire 431 | 12 16 1 . 14 43 4 27 14 . 1 10 7 4 16 20 21 24 17 . 18 1 72 . 30 . . 7 22 12 18 Melee 263 | . . . . . . . . . . . . . . 36 . . . . . . . . 11 . 28 28 26 134 . . Ram . | . . . . . . . . . . . . . . . . . . . . . . . . . . . . . . . Kick . | . . . . . . . . . . . . . . . . . . . . . . . . . . . . . . . Crush . | . . . . . . . . . . . . . . . . . . . . . . . . . . . . . . . Escape Stasis 22 | . . . . . . 2 . . . . . . . . . . . . . . . 10 . . . . 1 9 . . Rewire 33 | . . . . . . . 6 . . . . . . . . . . . 5 . . 18 . . . . . 4 . . Trap . | . . . . . . . . . . . . . . . . . . . . . . . . . . . . . . . Miscellaneous 405 | . 2 6 . 5 10 10 22 7 . 1 5 5 . 57 15 7 14 4 3 12 . 23 16 8 8 12 63 73 8 9 Route ------- -11/Scrapyard -10/Materials (discovered 5 exits: [*Mat x2] / *Min x2 / [Sub]) -10/Mines (discovered 3 exits: [*Mat x2] / *Exi) -10/Exiles (discovered 2 exits: [*Min x2]) -9/Mines (discovered 2 exits: *Mat x2) -8/Materials (discovered 3 exits: *Fac x3) -7/Factory (discovered 4 exits: Sto x2 / *Low x2) -7/Lower Caves -7/Lower Caves (discovered 2 exits: *Fac / *Dat) -7/Data Miner -6/Proximity Caves -6/Factory (discovered 4 exits: *Fac x2 / *Low x2) -6/Lower Caves -6/Zion (discovered 2 exits: *Dee / [*Pro]) -6/Deep Caves -5/Proximity Caves -5/Factory (discovered 4 exits: *Fac x2 / *Upp x2) -5/Upper Caves -5/Upper Caves (discovered 2 exits: *Fac / *War) -5/Warlord -4/Proximity Caves -4/Factory (discovered 5 exits: Res / Upp x2 / *Ext x2) -4/Extension (discovered 3 exits: *Res x2 / *Cet) -4/Cetus (discovered 3 exits: *Res x2 / *Arc) -3/Research (discovered 5 exits: Res x2 / *Arm / *Tes x2) -3/Testing -2/Research (discovered 4 exits: *Acc x2 / *Qua x2) -2/Quarantine (discovered 3 exits: *Acc / *Sec / *Frg) -2/Protoforge -1/Access -1/Command To Epsilon Eridani History --------- Turn | Location | Event 1 | -11/Scrapyard | Upgraded with Propulsion slot (x1) 1 | -11/Scrapyard | Upgraded with Utility slot (x4) 1 | -11/Scrapyard | Upgraded with Weapon slot (x2) 4 | -11/Scrapyard | Discovered new exit (range 15) 187 | -11/Scrapyard | Entered Materials 220 | -10/Materials | Discovered new exit (range 16) 239 | -10/Materials | Identified exit to Mines 316 | -10/Materials | Build established: Wizard-Skirmisher 454 | -10/Materials | Discovered new exit (range 14) 501 | -10/Materials | Discovered new exit (range 17) 534 | -10/Materials | Upgraded with Propulsion slot (x3) 581 | -10/Materials | Entered Mines 583 | -10/Mines | Reached level 2 589 | -10/Mines | Discovered new exit (range 10) 604 | -10/Mines | Learned Materials security intel 613 | -10/Mines | Found the Drone Emporium 617 | -10/Mines | Found Prototype Device 617 | -10/Mines | Identified Thief Drone Bay 650 | -10/Mines | Discovered new exit (range 13) 651 | -10/Mines | Assembled infested the area 656 | -10/Mines | Assisted by a Guerilla fighting off Assembled 694 | -10/Mines | Discovered new exit (range 10) 697 | -10/Mines | Deemed a non-threat by the Exiles lab entrance 698 | -10/Mines | Entered Exiles 703 | -10/Exiles | Discovered new exit (range 17) 708 | -10/Exiles | Met 8R-AWN 715 | -10/Exiles | Met EX-HEX 726 | -10/Exiles | Met EX-DEC 731 | -10/Exiles | Learned location of Zion (-6) 746 | -10/Exiles | Visited The Gauntlet 763 | -10/Exiles | Met EX-BIN 807 | -10/Exiles | Discovered new exit (range 13) 810 | -10/Exiles | Entered Mines 827 | -9/Mines | Discovered new exit (range 14) 843 | -9/Mines | Reached level 3 870 | -9/Mines | Build established: Wizard-Scout 874 | -9/Mines | Discovered new exit (range 13) 917 | -9/Mines | Found a Scrap Suit stashed away for nefarious purposes 917 | -9/Mines | Found Scrap Suit 921 | -9/Mines | Learned Materials non-interactive machine intel 956 | -9/Mines | Learned location of Storage (-7) 1008 | -9/Mines | Learned 2 Materials zone layouts 1026 | -9/Mines | Upgraded with Utility slot (x3) 1027 | -9/Mines | Entered Materials 1029 | -8/Materials | Reached level 4 1030 | -8/Materials | Loaded intel: 34 non-interactive machine locations 1046 | -8/Materials | Identified exit to Factory 1169 | -8/Materials | Reached level 5 1322 | -8/Materials | Entered Factory 1324 | -7/Factory | Reached level 6 1324 | -7/Factory | Destroyed 8 combat bots 1339 | -7/Factory | Upgraded with Utility slot (x3) 1376 | -7/Factory | Identified exit to Storage 1376 | -7/Factory | Identified exit to Lower Caves 1394 | -7/Factory | Garrison activated, responded to threat 1462 | -7/Factory | Entered Lower Caves 1464 | -7/Lower Caves | Reached level 7 1533 | -7/Lower Caves | Encountered a Warlord checkpoint 1572 | -7/Lower Caves | Discovered new exit (range 12) 1622 | -7/Lower Caves | Reached level 8 1641 | -7/Lower Caves | Attracted the attention of an 0b10 outpost 1687 | -7/Lower Caves | Destroyed 7 combat bots 1705 | -7/Lower Caves | Learned location of 1 exit from Proximity Caves 1791 | -7/Lower Caves | Destroyed 7 combat bots 1851 | -7/Lower Caves | Identified exit to Lower Caves 1946 | -7/Lower Caves | Entered another Lower Caves area 1946 | -7/Lower Caves | Accompanied by 2 allies 1949 | -7/Lower Caves | Discovered new exit (range 9) 1959 | -7/Lower Caves | Reached level 9 1962 | -7/Lower Caves | Identified exit to Factory 1970 | -7/Lower Caves | Attracted the attention of an 0b10 checkpoint 1982 | -7/Lower Caves | Encountered a Warlord checkpoint 2033 | -7/Lower Caves | Found DCF Scrap (14 items) 2040 | -7/Lower Caves | Upgraded with Utility slot (x2) 2047 | -7/Lower Caves | Discovered new exit (range 16) 2091 | -7/Lower Caves | Learned Research emergency access door positions 2091 | -7/Lower Caves | Learned Research stockpile data 2097 | -7/Lower Caves | Identified exit to Data Miner 2151 | -7/Lower Caves | Entered Data Miner 2151 | -7/Data Miner | Accompanied by 2 allies 2151 | -7/Data Miner | Discovered new exit (range 6) 2154 | -7/Data Miner | Met Data Miner 2154 | -7/Data Miner | Reached level 10 2161 | -7/Data Miner | Learned location of Section 7 (-2) 2161 | -7/Data Miner | Acquired the access code to Warlord's prototype stash 2165 | -7/Data Miner | Received God Mode back door access code from Data Miner 2170 | -7/Data Miner | Identified exit to Proximity Caves 2185 | -7/Data Miner | Entered Proximity Caves 2185 | -6/Proximity Caves | Accompanied by 2 allies 2242 | -6/Proximity Caves | Learned location of 1 exit from Proximity Caves 2291 | -6/Proximity Caves | Learned location of 1 exit from Factory 2294 | -6/Proximity Caves | Learned location of 1 exit from Factory 2369 | -6/Proximity Caves | Entered Factory 2369 | -6/Factory | Accompanied by 2 allies 2370 | -6/Factory | Discovered new exit (range 14) 2370 | -6/Factory | Identified exit to Lower Caves 2370 | -6/Factory | Identified exit to Factory 2371 | -6/Factory | Reached level 11 2433 | -6/Factory | Discovered exit to Lower Caves (range 21) 2492 | -6/Factory | Entered Lower Caves 2492 | -6/Lower Caves | Accompanied by 2 allies 2493 | -6/Lower Caves | Reached level 12 2608 | -6/Lower Caves | A Derelict revealed a hidden shortcut to a safe place 2611 | -6/Lower Caves | Identified exit to Zion 2688 | -6/Lower Caves | Entered Zion 2688 | -6/Zion | Accompanied by 1 ally 2690 | -6/Zion | Reached level 13 2699 | -6/Zion | Discovered new exit (range 20) 2768 | -6/Zion | Gained Derelict followers 2829 | -6/Zion | Discovered new exit (range 12) 2862 | -6/Zion | Met Imprinter 2886 | -6/Zion | Saw the warning signs outside the Deep Caves entrance 2887 | -6/Zion | Identified exit to Deep Caves 2991 | -6/Zion | Entered Deep Caves 3121 | -6/Deep Caves | Attacked by Z-Imprinter 3151 | -6/Deep Caves | Core integrity fell below 50% 3162 | -6/Deep Caves | Reached level 14 3162 | -6/Deep Caves | Destroyed Z-Imprinter 3175 | -6/Deep Caves | Core integrity fell below 20% 3225 | -6/Deep Caves | Upgraded with Utility slot (x2) 3243 | -6/Deep Caves | Found Prototype Protection 3243 | -6/Deep Caves | Identified Zio. Weapon Casing 3285 | -6/Deep Caves | Z-Facility disabled 3358 | -6/Deep Caves | Upgraded with Utility slot (x1) 3358 | -6/Deep Caves | Found Prototype Protection 3358 | -6/Deep Caves | Identified Zio. Heavy Carapace 3456 | -6/Deep Caves | Discovered new exit (range 21) 3461 | -6/Deep Caves | Identified exit to Proximity Caves 3490 | -6/Deep Caves | Spotted Golem 3634 | -6/Deep Caves | Destroyed Golem 3641 | -6/Deep Caves | Found GOLEM Unit 3832 | -6/Deep Caves | Triggered Deep Caves wall 3832 | -6/Deep Caves | Spotted Assembler 3851 | -6/Deep Caves | Entered Proximity Caves 3854 | -5/Proximity Caves | Reached level 15 3864 | -5/Proximity Caves | Attracted the attention of an 0b10 checkpoint 3924 | -5/Proximity Caves | Attracted the attention of an 0b10 outpost 4044 | -5/Proximity Caves | Learned Factory emergency access door positions 4096 | -5/Proximity Caves | Entered Factory 4098 | -5/Factory | Reached level 16 4203 | -5/Factory | Fabricated Adv. Terrain Scanner (x2) 4232 | -5/Factory | Identified exit to Upper Caves 4250 | -5/Factory | Reached level 17 4300 | -5/Factory | Watched by a mysterious "MATRIX" hacker 4315 | -5/Factory | Discovered new exit (range 15) 4396 | -5/Factory | Discovered new exit (range 19) 4407 | -5/Factory | Reached level 18 4434 | -5/Factory | Identified exit to Factory 4460 | -5/Factory | Upgraded with Propulsion slot (x1) 4463 | -5/Factory | Entered Upper Caves 4546 | -5/Upper Caves | Destroyed 8 combat bots 4549 | -5/Upper Caves | Reached level 19 4581 | -5/Upper Caves | Learned location of 1 exit from Proximity Caves 4581 | -5/Upper Caves | Learned Armory trap positions 4581 | -5/Upper Caves | Learned Extension security intel 4612 | -5/Upper Caves | Discovered new exit (range 20) 4619 | -5/Upper Caves | Identified exit to Upper Caves 4628 | -5/Upper Caves | Entered another Upper Caves area 4629 | -5/Upper Caves | Discovered exit to Factory (range 17) 4629 | -5/Upper Caves | Identified exit to Warlord 4650 | -5/Upper Caves | Learned location of 1 exit from Factory 4652 | -5/Upper Caves | Encountered a Warlord checkpoint 4655 | -5/Upper Caves | Spotted B-75 Beast 4663 | -5/Upper Caves | Reached level 20 4663 | -5/Upper Caves | Destroyed B-75 Beast 4706 | -5/Upper Caves | Attracted the attention of an 0b10 outpost 4747 | -5/Upper Caves | Entered Warlord 4761 | -5/Warlord | Received a Watcher feed algorithm from an ecstatic Tinkerer 4762 | -5/Warlord | Ran a Watcher feed algorithm 4803 | -5/Warlord | Opened Warlord's prototype stash 4805 | -5/Warlord | Found Prototype Device 4805 | -5/Warlord | Identified System Purifier 4807 | -5/Warlord | Found Prototype Device 4807 | -5/Warlord | Identified Exp. Cloaking Device 4815 | -5/Warlord | Found Prototype Processor 4815 | -5/Warlord | Identified Exp. Core Analyzer 4834 | -5/Warlord | Met Warlord 4859 | -5/Warlord | Warlord's base attacked by MAIN.C 4889 | -5/Warlord | Found Prototype Energy Gun 4889 | -5/Warlord | Identified Vortex Rifle 4891 | -5/Warlord | Found Prototype Piercing Weapon 4891 | -5/Warlord | Identified Vortex Lance 5039 | -5/Warlord | Opened side exit 5052 | -5/Warlord | Discovered new exit (range 9) 5052 | -5/Warlord | Identified exit to Proximity Caves 5052 | -5/Warlord | Entered Proximity Caves 5054 | -4/Proximity Caves | Reached level 21 5089 | -4/Proximity Caves | Unaware initiated a cargo recovery operation 5134 | -4/Proximity Caves | Attracted the attention of an 0b10 checkpoint 5168 | -4/Proximity Caves | Spotted B-86 Titan 5172 | -4/Proximity Caves | Destroyed B-86 Titan 5241 | -4/Proximity Caves | Reached level 22 5270 | -4/Proximity Caves | Entered Factory 5271 | -4/Factory | Identified exit to Research 5272 | -4/Factory | Reached level 23 5280 | -4/Factory | Identified exit to Upper Caves 5280 | -4/Factory | Identified exit to Extension 5324 | -4/Factory | Entered Extension 5324 | -4/Extension | Accompanied by 1 ally 5387 | -4/Extension | Rescued a captive Derelict 5388 | -4/Extension | Rescued a captive Derelict 5415 | -4/Extension | Rescued a captive Derelict 5422 | -4/Extension | Destroyed 7 combat bots 5425 | -4/Extension | Rescued a captive Derelict 5566 | -4/Extension | Disrupted transfer network 5616 | -4/Extension | Spotted B-86 Titan 5653 | -4/Extension | Spotted B-86 Titan 5654 | -4/Extension | Reached level 24 5654 | -4/Extension | Allies destroyed B-86 Titan 5663 | -4/Extension | P-70 Sage assimilated allied 3Z-U6R(l) 5681 | -4/Extension | P-70 Sage assimilated allied 87-ZP2(g) 5700 | -4/Extension | Destroyed B-86 Titan 5703 | -4/Extension | Discovered exit to Research (range 18) 5703 | -4/Extension | Lost 9 allies 5737 | -4/Extension | Rescued a captive Derelict 5746 | -4/Extension | Rescued A7 5746 | -4/Extension | Rescued a captive Derelict 5765 | -4/Extension | Rescued a captive Derelict 5766 | -4/Extension | Rescued a captive Derelict 5767 | -4/Extension | Rescued a captive Derelict 5767 | -4/Extension | Rescued a captive Derelict 5771 | -4/Extension | Reached level 25 5797 | -4/Extension | Destroyed 17 combat bots 5806 | -4/Extension | Rescued a captive Derelict 5807 | -4/Extension | Rescued a captive Derelict 5809 | -4/Extension | Rescued a captive Derelict 5811 | -4/Extension | Discovered new exit (range 20) 5822 | -4/Extension | Discovered exit to Research (range 10) 5824 | -4/Extension | First assault squad dispatched 5896 | -4/Extension | Identified exit to Cetus 5905 | -4/Extension | Destroyed 10 combat bots 5922 | -4/Extension | Entered Cetus 5922 | -4/Cetus | Accompanied by 11 allies (A7) 5927 | -4/Cetus | Acquired a Cetus Manufacturing Module code from A7 5944 | -4/Cetus | Spotted Cetus Guard 5944 | -4/Cetus | Spotted Cetus Guard 5944 | -4/Cetus | Spotted Cetus Guard 5944 | -4/Cetus | Spotted Cetus Guard 5956 | -4/Cetus | Allies destroyed Cetus Guard 5959 | -4/Cetus | Allies destroyed Cetus Guard 5962 | -4/Cetus | Reached level 26 5962 | -4/Cetus | Destroyed Cetus Guard 6031 | -4/Cetus | Discovered new exit (range 21) 6034 | -4/Cetus | Identified exit to Archives 6069 | -4/Cetus | Spotted Cetus Guard 6070 | -4/Cetus | Spotted Cetus Guard 6070 | -4/Cetus | Spotted Cetus Guard 6070 | -4/Cetus | Spotted Cetus Guard 6070 | -4/Cetus | Discovered exit to Research (range 21) 6076 | -4/Cetus | Allies destroyed Cetus Guard 6081 | -4/Cetus | Destroyed Cetus Guard 6085 | -4/Cetus | Allies destroyed Cetus Guard 6093 | -4/Cetus | Allies destroyed Cetus Guard 6095 | -4/Cetus | Met Revision 17 6165 | -4/Cetus | Discovered exit to Research (range 22) 6260 | -4/Cetus | Entered Research 6260 | -3/Research | Accompanied by 10 allies (A7) 6262 | -3/Research | Reached level 27 6361 | -3/Research | Found Prototype Processor 6361 | -3/Research | Identified Spectral Analyzer 6364 | -3/Research | Identified exit to Armory 6364 | -3/Research | Identified exit to Testing 6388 | -3/Research | Discovered new exit (range 18) 6397 | -3/Research | Discovered new exit (range 19) 6460 | -3/Research | Revision forces began assault on 0b10 6535 | -3/Research | Entered Testing 6537 | -3/Testing | Reached level 28 6553 | -3/Testing | Found Prototype Protection 6553 | -3/Testing | Identified Med. Regenerative Plating 6559 | -3/Testing | Targeted by mysterious "MATRIX" hacker 6559 | -3/Testing | Protovariant out of control (PH-1FPXKEPXNQ) 6559 | -3/Testing | Unleashed a protovariant (PH-1FPXKEPXNQ) 6575 | -3/Testing | Protovariant out of control (PH-2FOWA20FSX) 6575 | -3/Testing | Unleashed a protovariant (PH-2FOWA20FSX) 6576 | -3/Testing | Garrison activated, responded to threat 6585 | -3/Testing | Found Prototype Device 6585 | -3/Testing | Identified Exp. Shield Generator 6593 | -3/Testing | Found Prototype Device 6593 | -3/Testing | Identified Exp. Focal Shield 6612 | -3/Testing | Spotted PH-2FOWA20FSX 6664 | -3/Testing | Destroyed PH-2FOWA20FSX 6669 | -3/Testing | Found Prototype Processor 6669 | -3/Testing | Identified Exp. Targeting Computer 6682 | -3/Testing | Found Prototype Energy Gun 6682 | -3/Testing | Identified Warp Gun 6733 | -3/Testing | Spotted Striker 6733 | -3/Testing | Spotted Striker 6772 | -3/Testing | Found Prototype Energy Gun 6772 | -3/Testing | Identified Hyp. EM Gauss Rifle 6802 | -3/Testing | Spotted Alpha 7 6813 | -3/Testing | Discovered new exit (range 19) 6848 | -3/Testing | Identified exit to Research 6859 | -3/Testing | Spotted AF-MQU(K) 6867 | -3/Testing | Build established: Wizard-Ninja 6879 | -3/Testing | Entered Research 6879 | -2/Research | Warlord forces began assault on 0b10 6880 | -2/Research | Identified exit to Quarantine 6881 | -2/Research | Reached level 29 6882 | -2/Research | Discovered new exit (range 18) 6907 | -2/Research | Identified exit to Access 6917 | -2/Research | Spotted B-90 Cyclops 6920 | -2/Research | Local machine network offline 6935 | -2/Research | Reached level 30 6935 | -2/Research | Met up with Warlord 6942 | -2/Research | Took control of God Mode 6942 | -2/Research | Reached level 31 6942 | -2/Research | Attacked by Warlord forces 6942 | -2/Research | Spotted O5-NWE(D) 6946 | -2/Research | Spotted 7F-7D0(K) 6946 | -2/Research | Spotted V0-UEH(K) 6946 | -2/Research | Spotted M0-D3J(K) 6947 | -2/Research | Attacked by Warlord 6948 | -2/Research | Destroyed V0-UEH(K) 6959 | -2/Research | Allies destroyed M0-D3J(K) 6969 | -2/Research | Allies destroyed 7F-7D0(K) 6973 | -2/Research | Allies destroyed O5-NWE(D) 6975 | -2/Research | Destroyed Warlord 6977 | -2/Research | Warlord destroyed during the assault 6979 | -2/Research | Spotted DT-RYQ(D) 6980 | -2/Research | Spotted X8-09M(L) 7004 | -2/Research | Lost 3 allies 7028 | -2/Research | Discovered exit to Access (range 22) 7087 | -2/Research | Entered Quarantine 7096 | -2/Quarantine | Found Alien Impact Weapon 7096 | -2/Quarantine | Identified Core Stripper 7160 | -2/Quarantine | Found Prototype Launcher 7160 | -2/Quarantine | Identified Gui. Micro-nuke Launcher 7203 | -2/Quarantine | Scanned by Researcher 7216 | -2/Quarantine | Found Alien Reactor 7216 | -2/Quarantine | Identified Matter Drive 7224 | -2/Quarantine | Spotted Alpha 7 7239 | -2/Quarantine | Destroyed Alpha 7 7242 | -2/Quarantine | Found Exp. Target Analyzer 7310 | -2/Quarantine | Found Alien Launcher 7310 | -2/Quarantine | Identified Sigix Terminator 7333 | -2/Quarantine | Found Alien Slashing Weapon 7333 | -2/Quarantine | Identified Sigix Broadsword 7336 | -2/Quarantine | Local machine network offline 7345 | -2/Quarantine | Reached level 32 7377 | -2/Quarantine | Cryocooling Duct disabled 7392 | -2/Quarantine | Ambient heat levels rising (+20) 7392 | -2/Quarantine | Non-combat units ordered to evacuate 7395 | -2/Quarantine | Spotted Fortress 7410 | -2/Quarantine | Destroyed Fortress 7414 | -2/Quarantine | Found Prototype Device 7414 | -2/Quarantine | Identified Exp. EM Shield 7416 | -2/Quarantine | Found Prototype Device 7416 | -2/Quarantine | Identified Thermal Barrier 7418 | -2/Quarantine | Found Prototype Device 7418 | -2/Quarantine | Identified Exp. Force Field 7430 | -2/Quarantine | Discovered new exit (range 6) 7430 | -2/Quarantine | Discovered new exit (range 7) 7430 | -2/Quarantine | Identified exit to Protoforge 7431 | -2/Quarantine | Identified exit to Section 7 7447 | -2/Quarantine | Entered Protoforge 7500 | -2/Protoforge | Discovered exit to Access (range 18) 7543 | -2/Protoforge | Superfortress began startup sequence 7566 | -2/Protoforge | Found Prototype Slashing Weapon 7566 | -2/Protoforge | Identified Exp. Terror Saw 7571 | -2/Protoforge | Found Prototype Device 7571 | -2/Protoforge | Identified Exp. System Purifier 7574 | -2/Protoforge | Found Exp. System Purifier 7622 | -2/Protoforge | Found Prototype Device 7622 | -2/Protoforge | Identified Cep. Recoil Nullifier 7626 | -2/Protoforge | Found Prototype Energy Gun 7626 | -2/Protoforge | Identified Cep. Variable Chargecaster 7629 | -2/Protoforge | Found Cep. Variable Chargecaster 7630 | -2/Protoforge | Found Cep. Variable Chargecaster 7639 | -2/Protoforge | Spotted Immortal 7691 | -2/Protoforge | Destroyed Immortal 7718 | -2/Protoforge | Destroyed 12 combat bots 7746 | -2/Protoforge | Spotted Decapitator 7807 | -2/Protoforge | Spotted Decapitator 7807 | -2/Protoforge | Spotted Decapitator 7807 | -2/Protoforge | Spotted V639-z 7816 | -2/Protoforge | Found Prototype Device 7816 | -2/Protoforge | Identified Crosscalibrator 7819 | -2/Protoforge | Spotted Immortal 7830 | -2/Protoforge | Spotted V446-a 7830 | -2/Protoforge | Spotted V449-b 7830 | -2/Protoforge | Spotted V903-l 7830 | -2/Protoforge | Spotted V658-g 7834 | -2/Protoforge | Spotted Decapitator 7834 | -2/Protoforge | Spotted Decapitator 7834 | -2/Protoforge | Spotted Decapitator 7834 | -2/Protoforge | Spotted Decapitator 7841 | -2/Protoforge | Destroyed Decapitator 7844 | -2/Protoforge | Destroyed Decapitator 7847 | -2/Protoforge | Destroyed Decapitator 7850 | -2/Protoforge | Destroyed Decapitator 7899 | -2/Protoforge | Found Femtoactuators 7900 | -2/Protoforge | Destroyed 7 combat bots 7901 | -2/Protoforge | Found Prototype Processor 7901 | -2/Protoforge | Identified Cep. Melee Reflex Suite 7910 | -2/Protoforge | Destroyed Immortal 7912 | -2/Protoforge | Found Prototype Device 7912 | -2/Protoforge | Identified Cep. Antimissile System 7914 | -2/Protoforge | Found Prototype Processor 7914 | -2/Protoforge | Identified Exp. Melee Analysis Suite 7963 | -2/Protoforge | Spotted Decapitator 7970 | -2/Protoforge | Spotted V005-z 7970 | -2/Protoforge | Spotted V479-t 7983 | -2/Protoforge | Destroyed V479-t 7989 | -2/Protoforge | Destroyed V005-z 8004 | -2/Protoforge | Spotted Decapitator 8004 | -2/Protoforge | Spotted Decapitator 8005 | -2/Protoforge | Destroyed Decapitator 8009 | -2/Protoforge | Destroyed Decapitator 8025 | -2/Protoforge | Spotted V910-k 8029 | -2/Protoforge | Reached level 33 8029 | -2/Protoforge | Destroyed V910-k 8034 | -2/Protoforge | Found Prototype Device 8034 | -2/Protoforge | Identified Exp. Remote Shield 8038 | -2/Protoforge | Found Exp. Armor Integrity Analyzer 8049 | -2/Protoforge | Found Adv. Particle Accelerator 8083 | -2/Protoforge | Spotted Immortal 8083 | -2/Protoforge | Spotted Immortal 8083 | -2/Protoforge | Spotted V485-r 8085 | -2/Protoforge | Spotted V134-i 8087 | -2/Protoforge | Found Prototype Energy Gun 8087 | -2/Protoforge | Identified Cep. Lightning Penetrator 8090 | -2/Protoforge | Spotted V652-y 8134 | -2/Protoforge | Destroyed V652-y 8140 | -2/Protoforge | Destroyed Immortal 8174 | -2/Protoforge | Found Prototype Device 8174 | -2/Protoforge | Identified Exp. Active Sensor Suite 8185 | -2/Protoforge | Spotted AP7-3 8185 | -2/Protoforge | Spotted AP7-3 8237 | -2/Protoforge | Destroyed AP7-3 8246 | -2/Protoforge | Destroyed AP7-3 8261 | -2/Protoforge | Found Prototype Device 8261 | -2/Protoforge | Identified Cep. Cloak Mesh 8266 | -2/Protoforge | Found Prototype Device 8266 | -2/Protoforge | Identified Cep. Impact Drone Bay 8298 | -2/Protoforge | Build established: Wizard-Scout 8470 | -2/Protoforge | Spotted Immortal 8505 | -2/Protoforge | Destroyed Immortal 8524 | -2/Protoforge | Fired Sigix Terminator 8524 | -2/Protoforge | Additional patrols dispatched to research labs 8538 | -2/Protoforge | Spotted Hotshot 8550 | -2/Protoforge | Entered Access 8552 | -1/Access | Reached level 34 8578 | -1/Access | Garrison activated, responded to threat 8591 | -1/Access | Identified exit to Command 8613 | -1/Access | Spotted B-99 Colossus 8615 | -1/Access | Spotted B-99 Colossus 8615 | -1/Access | Entered Command 8617 | -1/Command | Reached level 35 8652 | -1/Command | Spotted B-99 Colossus 8668 | -1/Command | Destroyed B-99 Colossus 8684 | -1/Command | Spotted Executioner 8684 | -1/Command | Spotted Executioner 8684 | -1/Command | Spotted Executioner 8684 | -1/Command | Spotted Striker 8685 | -1/Command | Spotted Alpha 7 8687 | -1/Command | Spotted B-99 Colossus 8708 | -1/Command | Spotted Striker 8711 | -1/Command | Spotted M Guard 8711 | -1/Command | Spotted M Guard 8711 | -1/Command | Spotted Combat Programmer 8711 | -1/Command | Spotted Combat Programmer 8717 | -1/Command | Destroyed 10 combat bots 8725 | -1/Command | Met MAIN.C 8733 | -1/Command | Spotted Alpha 7 8733 | -1/Command | Spotted Executioner 8733 | -1/Command | Spotted B-99 Colossus 8734 | -1/Command | Discovered new exit (range 8) 8734 | -1/Command | Identified exit to Surface 8734 | *** | Escaped! Last Messages --------------- 08731_ Slug penetrates Wall. 08731_ Slug penetrates Executioner. 08732_ K-01 Serf collects debris. 08732_ Slug penetrates B-99 Colossus. 08732_ Slug penetrates Earth. 08732_ Penetrated by Slug. 08732_ Slug penetrates Wall. 08733_ Mak. Trap Scanner disarmed Stasis Trap. 08733_ Slug penetrates Wall. 08733_ Mak. Trap Scanner disarmed Stasis Trap. 08733_ Slug penetrates Wall. 08733_ Mak. Trap Scanner disarmed Stasis Trap. 08734_ The Access Shell folds into the floor. 08734_ EXIT=FOUND 08734_ Mak. Trap Scanner disarmed Stasis Trap. 08734_ Knocked back. 08734_ Mak. Trap Scanner disarmed Stasis Trap. 08734_ Slug penetrates Wall. 08734_ Mak. Trap Scanner disarmed Stasis Trap. 08734_ EXIT=IDENTIFIED: SURFACE Map ----- +----------------------------------------------------+ | ?# !!! # # + # #??????? | | ?# [%%= " ] # # + #??????? | | ???#!= # %"" # # # #??????? | | ???# ^ " """" # ?# ## #??????? | | ???# + """ # ?# #########??????? | | ???# ""##"# "" # ??# #??????????????? | | ???# ###### ####??# #??????????????? | | ### #????# #?????# #??????????????? | | #????###########?????# #??????????????? | | #????????????????#####+###############? | | #### ^ #????????????????# # [ #? | | ???# #????????????????# !# #? | | ???# #######??????????# # ??? | | ???+ # #??????????# #? ????? | | ???# # #??????????# ####+#+##+#? | | ???# # #??????????# + #? | | ???# # #??????????# # #? | | ???# # #??????????# + #? | | ???# # #??????????########### #? | | ???# + #?##############?????# #? | | ####+####### #?# #?????# #? | | ##! #?# #?????# #? | | ## !#?# #?????# ## | | ## #?# #?????# "" | | ## #?# #???### "" | | ########?# @" #???#" "" | | #????????# "" #???#"" T | | ########+######????# #???#"" "" | | ?????# #????# #???#"" "" | | ?????# #????# ^ ^^ #???#"" % "" | | ?????# #????# BB#???#"T ## | | ?????# #????# % BB#???#"" #? | | ?????# #????####^ ^^^ ####???#"" ## | | ?????# #??????# ^ ^ E#?????#"" # | | ?????# #??????## E##?????#"" # | | ?????# #??????# ^^^ ^ #?????#" # | | ?????# #??????##^ ^ ##?????### |" | | ?????# #?????#" ^^ K#???????# %"= | | ?????# #?????###^^ ^ ##???????# # | | ?????# #??????# ^^ ^7#???????# # | | ?????# ####???## ##???????# # | | ?????# """#????# #????????# ## | | ###### T"#????##;;;+##????????# #? | | """#?????# % #?????????# #? | | ####?????# ########### ###? | | #?###??### #### | | ###"####"" " # | | % % " ## | | ## !! %= ## # | | ?# ! %% % % "" #### #??? | +----------------------------------------------------+ Best States ------------- Heat Dissipation 175 Energy Generation 224 Energy Capacity 2000 Matter Stores 1000 Matter Capacity 1000 Sight Range 22 Robot Scan Range 24 Terrain Scan Range 20 Terrain Scan Density 3010 Jamming Range 14 Cloak Strength 6 Power Amplification 40 Additional Mass Support 20 EM Shielding 4 Armor Coverage 1200 Resistance: KI 20 Resistance: TH 50 Resistance: EX 20 Resistance: EM 25 Resistance: I 15 Resistance: S 15 Resistance: P 15 Weapon Shielding 100 Point Defense Rating 480 Weapon Cycling 25 Melee Speed Boost 50 Phase Shifting 15 Evasion (%) 97 Targeting Accuracy 20 Target Analysis 10 Core Analysis 8 Armor Integrity Analysis 50 Energy Filtering 50 Particle Charging 50 Offensive Hacking 100 Defensive Hacking 100 Item Schematics ----------------- Lgt. Regenerative Plating | -7/Data Miner | Free Imp. Thermal Shield | -7/Data Miner | Free Imp. Focal Shield | -6/Zion | Archive IFF Parser | -6/Zion | Archive Imp. Hacking Suite | -6/Zion | Archive Imp. Transmission Jammer | -6/Zion | Archive Imp. Proton Missile Launcher | -6/Zion | Archive Imp. Component Analysis Suite | -6/Zion | Archive Adv. Terrain Scanner | -6/Zion | Archive Matter Neutralizer | -6/Zion | Archive Imp. Point Defense System | -6/Zion | Archive Thermal Shield | -6/Zion | Archive Imp. Remote Datajack | -6/Zion | Archive Tiamat Missile Launcher | -6/Zion | Archive Imp. Dynamic Insulation System | -6/Zion | Archive Fission Core | -6/Zion | Archive Jamming Amplifier | -6/Zion | Archive Wave Gun | -6/Zion | Archive Adv. Trap Scanner | -5/Factory | Hacked Hvy. Regenerative Plating | -3/Testing | Hacked Cld. Proton Cannon | -3/Testing | Archive Adv. KE Penetrator | -3/Testing | Archive Thunder Hammer | -3/Testing | Archive Adv. Variable Charge Gun | -3/Testing | Archive Exp. Armor Integrity Analyzer | -3/Testing | Hacked Adv. Gravity Neutralizer | -3/Testing | Archive Cld. Phase Gun | -3/Testing | Archive Lrg. Battery | -3/Testing | Hacked Adv. Matter Compressor | -2/Quarantine | Archive Exp. Biometal Heavy Treads | -2/Quarantine | Archive Cld. Impulse Thruster | -2/Quarantine | Archive Hvy. Proton Cannon | -2/Quarantine | Archive Exp. ECM Suite | -2/Quarantine | Archive Vortex Chain Reactor | -2/Protoforge | Archive Exp. Power Amplifier | -2/Protoforge | Archive Robot Schematics ------------------ M-22 Extractor | -6/Zion | Archive A-02 Transporter | -6/Zion | Archive R-06 Scavenger | -6/Zion | Archive K-01 Serf | -3/Testing | Archive A-15 Conveyor | -3/Testing | Archive E-15 Imp | -3/Testing | Archive T-07 Excavator | -2/Protoforge | Archive A-27 Freighter | -2/Protoforge | Archive Fabricated ------------ Adv. Terrain Scanner | x2 | -5/Factory Repaired ---------- Nothing Studied --------- Carbide Saw | -4/Factory | Hacked Imp. Plasma Cutter | -4/Factory | Hacked Quantum Rifle | -4/Factory | Hacked Imp. Surge Thruster | -4/Factory | Hacked Enh. Force Lance | -3/Testing | Hacked Alien Tech Used ----------------- Core Stripper Matter Drive Sigix Terminator Sigix Broadsword Achievements -------------- No Room For Error Challenges ------------ None RPGLIKE | -11 -10 -10 -10 -9 -8 -7 -7 -7 -7 -6 -6 -6 -6 -6 -5 -5 -5 -5 -5 -4 -4 -4 -4 -3 -3 -2 -2 -2 -1 -1 --------- Run | Yrd Mat Min Exi Min Mat Fac Low Low Dat Pro Fac Low Zio Dee Pro Fac Upp Upp War Pro Fac Ext Cet Res Tes Res Qua Frg Acc Com Levels Raised 34 | . . 1 . 1 2 1 2 1 1 . 1 1 1 1 1 3 1 1 . 2 1 2 1 1 1 3 1 1 1 1 XP Earned 55010 | 3000 1275 500 200 1625 3625 1650 2400 1700 650 1150 1650 1118 650 1750 2150 3575 2050 1145 697 1950 1500 4118 680 2060 1243 4428 1018 2326 1111 2016 XP Spent 522805 | 215955 3300 . . 6000 . 8700 8560 7300 . . . . . 13200 . 13400 3040 . 2000 25050 . . . . 8700 . 27750 179850 . . Upgrades 303 | 208 3 . . 3 . 3 8 2 . . . . . 3 . 5 8 . 4 6 . . . . 2 . 5 43 . . Propulsion Slot 5 | 1 3 . . . . . . . . . . . . . . 1 . . . . . . . . . . . . . . Utility Slot 15 | 4 . . . 3 . 3 . 2 . . . . . 3 . . . . . . . . . . . . . . . . Weapon Slot 2 | 2 . . . . . . . . . . . . . . . . . . . . . . . . . . . . . . Core Integrity 8 | 8 . . . . . . . . . . . . . . . . . . . . . . . . . . . . . . Heat Dissipation 25 | 13 . . . . . . . . . . . . . . . . 8 . 4 . . . . . . . . . . . Energy Generation 39 | 9 . . . . . . . . . . . . . . . 4 . . . 6 . . . . . . 5 15 . . Energy Storage 33 | 13 . . . . . . . . . . . . . . . . . . . . . . . . . . . 20 . . Matter Storage 14 | 14 . . . . . . . . . . . . . . . . . . . . . . . . . . . . . . Mass Support 16 | 8 . . . . . . . . . . . . . . . . . . . . . . . . 2 . . 6 . . Inventory Capacity 12 | 10 . . . . . . . . . . . . . . . . . . . . . . . . . . . 2 . . Sight Range 6 | 6 . . . . . . . . . . . . . . . . . . . . . . . . . . . . . . Sensor Range 12 | 12 . . . . . . . . . . . . . . . . . . . . . . . . . . . . . . Terrain Scan Density 30 | 22 . . . . . . 8 . . . . . . . . . . . . . . . . . . . . . . . Ranged Accuracy 18 | 18 . . . . . . . . . . . . . . . . . . . . . . . . . . . . . . Melee Accuracy 12 | 12 . . . . . . . . . . . . . . . . . . . . . . . . . . . . . . Hack Attack % 20 | 20 . . . . . . . . . . . . . . . . . . . . . . . . . . . . . . Hack Defense % 20 | 20 . . . . . . . . . . . . . . . . . . . . . . . . . . . . . . KI Resistance % 4 | 4 . . . . . . . . . . . . . . . . . . . . . . . . . . . . . . TH Resistance % 4 | 4 . . . . . . . . . . . . . . . . . . . . . . . . . . . . . . EX Resistance % 4 | 4 . . . . . . . . . . . . . . . . . . . . . . . . . . . . . . TH Damage % 4 | 4 . . . . . . . . . . . . . . . . . . . . . . . . . . . . . . Protomatter Created 4379 | . 103 . . 56 202 . 354 123 . 39 65 52 . 347 228 128 211 265 . 145 . 587 . 51 119 180 104 843 58 119 Integrity Restored 7519 | . 33 92 . 59 212 204 411 117 . 17 86 86 . 1218 282 125 220 63 51 232 . 398 300 128 137 260 888 1536 174 190 Core 4929 | . 33 51 . 43 195 204 190 93 . . 59 57 . 925 152 85 124 37 . 92 . 306 97 62 90 236 490 1017 174 117 Parts 2590 | . . 41 . 16 17 . 221 24 . 17 27 29 . 293 130 40 96 26 51 140 . 92 203 66 47 24 398 519 . 73 Protomatter Decayed 2375 | . . . . 10 131 . 40 33 . . . 70 . 105 15 43 81 . 44 73 . 423 47 649 122 231 42 205 . 11 Game ------ Seed SingularityEtherialArmor Manual? 0 Play Time 04:19:22 Cumulative 376.3 hours Start 2026.08.06 @ 09:51:26 End 2026.08.07 @ 00:17:00 Sessions 5 Manual Loads 0 Difficulty Rogue Special Mode Winter2019/RPGLIKE Game No. 138 Rogue 2 Adventurer 2 Explorer 134 Win Type 0 Total 34 Types 19/2/6/3/1/1/1/0/1/0 Lore% 81 Gallery% 76 Achievement% 67 Wizard Run 0 Options --------- Layout 0 ASCII 0 Keyboard 1 Movement Numpad Keybinds 0 Fullscreen 2 Font 18/X11 Map View 76x50 Zoom Use 0% Tactical HUD 1 Map Filters BRIGHTNESS(150) Filters NONE Steam 1 RUN: 2b37ab6d-4f31-4fd3-a756-6297b5d22385